Workbook

Sheet Contents
C3: Contents Page
E8: DATA | G8: Worksheet Reference
E10: RAW Data | G10: SAMPLES!A1
E11: MP by Colour | G11: MP by Colour'!A1
E12: MP by Size Fraction | G12: MP by Fraction'!A1
E13: MP by Morphology | G13: MP by morphology'!A1
E14: MP Sediment ratio | G14: MPsediment ratio'!A1
E16: Statistics
E18: Normality Tests | G18: Normality_Test!A1
E19: Kruskal Wallis Tests for:
E20: Stations | G20: Kruskal-Wallis Stations'!A1
E21: [Surface/Sub-surface] | G21: Kruskal-SurfacewrtSubsurface'!A1

Sheet SAMPLES
B2: SAMPLE ID | C2: MS01A | D2: MS01B | E2: MD01A | F2: MD01B | G2: MS02A | H2: MS02B | I2: MD02A | J2: MD02B | K2: MS03A | L2: MS03B | M2: MD03A | N2: MD03B | O2: MS04A | P2: MS04B | Q2: MD04A | R2: MD04B | S2: MS05A | T2: MS05B | U2: MD05A | V2: MD05B
B3: Crude Mass (g) | C3: 100.03 | D3: 50.15 | E3: 50.08 | F3: 53.1 | G3: 100.12 | H3: 100.39 | I3: 100.19 | J3: 100.3 | K3: 50.21 | L3: 50.38 | M3: 50.07 | N3: 50.77 | O3: 50.24 | P3: 50.47 | Q3: 50.49 | R3: 50.27 | S3: 50.27 | T3: 100.53 | U3: 100.07 | V3: 100.4
B4: % Moisture | C4: =(22.4+32.4+43.2+37.7+24)/5 -> 31.94 | D4: =(22.4+32.4+43.2+37.7+24)/5 -> 31.94 | E4: =(22.4+32.4+43.2+37.7+24)/5 -> 31.94 | F4: =(22.4+32.4+43.2+37.7+24)/5 -> 31.94 | G4: =AVERAGE(39.8,39.8,40.1,40.8,41) -> 40.3 | H4: =AVERAGE(39.8,39.8,40.1,40.8,41) -> 40.3 | I4: =AVERAGE(39.8,39.8,40.1,40.8,41) -> 40.3 | J4: =AVERAGE(39.8,39.8,40.1,40.8,41) -> 40.3 | K4: =(34.1+40.5+39.9+40.8+30.9)/5 -> 37.24 | L4: =(34.1+40.5+39.9+40.8+30.9)/5 -> 37.24 | M4: =(34.1+40.5+39.9+40.8+30.9)/5 -> 37.24 | N4: =(34.1+40.5+39.9+40.8+30.9)/5 -> 37.24 | O4: =AVERAGE(31.1,40.4,42.9,35.8,36.4) -> 37.32 | P4: =AVERAGE(31.1,40.4,42.9,35.8,36.4) -> 37.32 | Q4: =AVERAGE(31.1,40.4,42.9,35.8,36.4) -> 37.32 | R4: =AVERAGE(31.1,40.4,42.9,35.8,36.4) -> 37.32 | S4: =(47.2+45.4+43.4+46.7+54.1)/5 -> 47.36 | T4: =(47.2+45.4+43.4+46.7+54.1)/5 -> 47.36 | U4: =(47.2+45.4+43.4+46.7+54.1)/5 -> 47.36 | V4: =(47.2+45.4+43.4+46.7+54.1)/5 -> 47.36
B5: Moisture adjusted mass (g) | C5: =((100-C4)/100)*C3 -> 68.080418 | D5: 34.13209 | E5: 34.084448 | F5: 36.13986 | G5: 59.77164 | H5: 59.93283 | I5: 59.81343 | J5: 59.8791 | K5: 31.511796 | L5: 31.618488 | M5: 31.423932 | N5: 31.863252 | O5: 31.490432 | P5: 31.634596 | Q5: 31.647132 | R5: 31.509236 | S5: 26.462128 | T5: 52.918992 | U5: 52.676848 | V5: 52.85056
B6: >5.6mm
B7: Mass of fraction (g) | C7: =88.0381-76.0359 -> 12.0022 | D7: 2.2434 | E7: =11.6965-11.6555 -> 0.041 | F7: 0.8885 | G7: 0.0421 | H7: 0.0092 | I7: 0 | J7: =16.3789-16.3551 -> 0.0238 | K7: 5.9693 | L7: =16.5763-16.2431 -> 0.3332 | M7: 0 | N7: 0 | O7: =13.9017-12.1784 -> 1.7233 | P7: =19.791-17.8987 -> 1.8923 | Q7: =12.6093-12.2316 -> 0.3777 | R7: =18.3562-17.6884 -> 0.6678 | S7: 0.0323 | T7: 0 | U7: 0 | V7: 0
B8: Fragment | C8: 52 | D8: 24 | E8: 4 | F8: 3 | G8: 1 | H8: 0 | I8: 0 | J8: 0 | K8: =3+1+4+3+1+2+2+1 -> 17 | L8: 4 | M8: 0 | N8: 0 | O8: =1+7+1+4+1 -> 14 | P8: =2+2+1+1 -> 6 | Q8: =1+1+2+3 -> 7 | R8: 3 | S8: 0 | T8: 0 | U8: 0 | V8: 0
B9: Fibre/Filament | C9: =19+31 -> 50 | D9: 3 | E9: 2 | F9: 5 | G9: 0 | H9: 1 | I9: 0 | J9: 1 | K9: 9 | L9: 1 | M9: 0 | N9: 0 | O9: 3 | P9: 2 | Q9: 1 | R9: 0 | S9: 0 | T9: 0 | U9: 0 | V9: 0
B10: Foam | C10: 4 | D10: 4 | E10: 0 | F10: 1 | G10: 0 | H10: 0 | I10: 0 | J10: 0 | K10: 20 | L10: 4 | M10: 0 | N10: 0 | O10: 5 | P10: 1 | Q10: 1 | R10: 0 | S10: 0 | T10: 0 | U10: 0 | V10: 0
B11: Pellet/Bead | C11: 5 | D11: 0 | E11: 0 | F11: 2 | G11: 0 | H11: 0 | I11: 0 | J11: 0 | K11: 0 | L11: 0 | M11: 0 | N11: 0 | O11: 0 | P11: 0 | Q11: 0 | R11: 0 | S11: 0 | T11: 0 | U11: 0 | V11: 0
B12: Film | C12: 4 | D12: 0 | E12: 0 | F12: 6 | G12: 0 | H12: 0 | I12: 0 | J12: 0 | K12: =1+1+2+1 -> 5 | L12: 0 | M12: 0 | N12: 0 | O12: 1 | P12: 1 | Q12: 3 | R12: 0 | S12: 1 | T12: 0 | U12: 0 | V12: 0
B13: Other | C13: 1 | D13: 0 | E13: 0 | F13: 0 | G13: 0 | H13: 0 | I13: 0 | J13: 0 | K13: 0 | L13: 0 | M13: 0 | N13: 0 | O13: 0 | P13: 0 | Q13: 0 | R13: 0 | S13: 0 | T13: 0 | U13: 0 | V13: 0
B14: TOTAL | C14: 116 | D14: =SUM(D8:D13) -> 31 | E14: 6 | F14: 17 | G14: 1 | H14: 1 | I14: 0 | J14: 1 | K14: 51 | L14: 9 | M14: 0 | N14: 0 | O14: 23 | P14: 10 | Q14: 12 | R14: 3 | S14: 1 | T14: 0 | U14: 0 | V14: 0
B15: Blue | C15: 20 | D15: 3 | E15: 2 | F15: 4 | G15: 0 | H15: 1 | I15: 0 | J15: 0 | K15: =2+3+1 -> 6 | L15: 2 | M15: 0 | N15: 0 | O15: 3 | P15: 0 | Q15: 1 | R15: 0 | S15: 1 | T15: 0 | U15: 0 | V15: 0
B16: Red | C16: 9 | D16: 1 | E16: 0 | F16: 1 | G16: 0 | H16: 0 | I16: 0 | J16: 0 | K16: 2 | L16: 0 | M16: 0 | N16: 0 | O16: 1 | P16: 0 | Q16: 1 | R16: 0 | S16: 0 | T16: 0 | U16: 0 | V16: 0
B17: Yellow | C17: 6 | D17: 0 | E17: 0 | F17: 0 | G17: 0 | H17: 0 | I17: 0 | J17: 0 | K17: 0 | L17: 0 | M17: 0 | N17: 0 | O17: 0 | P17: 0 | Q17: 1 | R17: 1 | S17: 0 | T17: 0 | U17: 0 | V17: 0
B18: White | C18: 14 | D18: 12 | E18: 2 | F18: 6 | G18: 0 | H18: 0 | I18: 0 | J18: 0 | K18: 26 | L18: 5 | M18: 0 | N18: 0 | O18: 9 | P18: 4 | Q18: 4 | R18: 1 | S18: 0 | T18: 0 | U18: 0 | V18: 0
B19: Black | C19: 7 | D19: 0 | E19: 0 | F19: 0 | G19: 1 | H19: 0 | I19: 0 | J19: 0 | K19: 0 | L19: 0 | M19: 0 | N19: 0 | O19: 1 | P19: 0 | Q19: 0 | R19: 0 | S19: 0 | T19: 0 | U19: 0 | V19: 0
B20: Brown | C20: 1 | D20: 0 | E20: 0 | F20: 0 | G20: 0 | H20: 0 | I20: 0 | J20: 0 | K20: 0 | L20: 0 | M20: 0 | N20: 0 | O20: 0 | P20: 0 | Q20: 0 | R20: 0 | S20: 0 | T20: 0 | U20: 0 | V20: 0
B21: Opaque | C21: 44 | D21: 5 | E21: 0 | F21: 3 | G21: 0 | H21: 0 | I21: 0 | J21: 0 | K21: =3 -> 3 | L21: 0 | M21: 0 | N21: 0 | O21: 7 | P21: 0 | Q21: 3 | R21: 1 | S21: 0 | T21: 0 | U21: 0 | V21: 0
B22: Grey | C22: 1 | D22: 1 | E22: 1 | F22: 1 | G22: 0 | H22: 0 | I22: 0 | J22: 0 | K22: 2 | L22: 1 | M22: 0 | N22: 0 | O22: 0 | P22: 2 | Q22: 0 | R22: 0 | S22: 0 | T22: 0 | U22: 0 | V22: 0
B23: Green | C23: 5 | D23: 1 | E23: 0 | F23: 0 | G23: 0 | H23: 0 | I23: 0 | J23: 1 | K23: 5 | L23: 0 | M23: 0 | N23: 0 | O23: 1 | P23: 1 | Q23: 2 | R23: 0 | S23: 0 | T23: 0 | U23: 0 | V23: 0
B24: Transparent | C24: 0 | D24: 7 | E24: 0 | F24: 2 | G24: 0 | H24: 0 | I24: 0 | J24: 0 | K24: =4+2 -> 6 | L24: 1 | M24: 0 | N24: 0 | O24: 1 | P24: 3 | Q24: 0 | R24: 0 | S24: 0 | T24: 0 | U24: 0 | V24: 0
B25: Orange | C25: 3 | D25: 0 | E25: 0 | F25: 0 | G25: 0 | H25: 0 | I25: 0 | J25: 0 | K25: 0 | L25: 0 | M25: 0 | N25: 0 | O25: 0 | P25: 0 | Q25: 0 | R25: 0 | S25: 0 | T25: 0 | U25: 0 | V25: 0
B26: Cream | C26: 1 | D26: 0 | E26: 1 | F26: 0 | G26: 0 | H26: 0 | I26: 0 | J26: 0 | K26: 1 | L26: 0 | M26: 0 | N26: 0 | O26: 0 | P26: 0 | Q26: 0 | R26: 0 | S26: 0 | T26: 0 | U26: 0 | V26: 0
B27: Metallic | C27: 0 | D27: 1 | E27: 0 | F27: 0 | G27: 0 | H27: 0 | I27: 0 | J27: 0 | K27: 0 | L27: 0 | M27: 0 | N27: 0 | O27: 0 | P27: 0 | Q27: 0 | R27: 0 | S27: 0 | T27: 0 | U27: 0 | V27: 1
B28: Multi-coloured | C28: 5 | D28: 0 | E28: 0 | F28: 0 | G28: 0 | H28: 0 | I28: 0 | J28: 0 | K28: 0 | L28: 0 | M28: 0 | N28: 0 | O28: 0 | P28: 0 | Q28: 0 | R28: 0 | S28: 0 | T28: 0 | U28: 0 | V28: 0
B29: TOTAL | C29: =SUM(C15:C28) -> 116 | D29: 31 | E29: 6 | F29: 17 | G29: 1 | H29: 1 | I29: 0 | J29: 1 | K29: 51 | L29: 9 | M29: 0 | N29: 0 | O29: 23 | P29: 10 | Q29: 12 | R29: 3 | S29: 1 | T29: 0 | U29: 0 | V29: 1
B30: >2mm | C30: 16.3155 | D30: 10.2914 | E30: =18.5008-17.844 -> 0.6568 | F30: =123.4952-121.9484 -> 1.5468 | G30: 0.006 | H30: =17.782-17.7712 -> 0.0108 | I30: 0 | J30: 0 | K30: 5.8043 | L30: =20.1633-16.247 -> 3.9163 | M30: =33.837-32.8204 -> 1.0166 | N30: =16.4737-16.3117 -> 0.162 | O30: =26.9094-17.9909 -> 8.9185 | P30: =17.9136-17.5534 -> 0.3602 | Q30: =20.3198-17.7906 -> 2.5292 | R30: =18.55-17.8442 -> 0.7058 | S30: =17.3207-17.3165 -> 0.0042 | T30: 0 | U30: =17.3575-17.3117 -> 0.0458 | V30: 0
B31: Fragment | C31: 244 | D31: =1+4+3+3+6+1+2+6+1+2+4+2+3+2+3+2+2+2+3+4+2+3+1+4+6+4+4+2+3+2+2+1+6+3+3+2+2+1+3+2+4+2+4+3+2+1+6+2+1+3+1+2+1+2+5+4+3+1+2+2+7+6+2+4+3+1+2+3+2+2 -> 195 | E31: =4+5+2+3+1+1 -> 16 | F31: =5+3+2+1+3+3+5+10+9+4+2+2 -> 49 | G31: 4 | H31: 2 | I31: 0 | J31: 0 | K31: =1+2+1+1+14+2+3+16+62+17+1+11+6 -> 137 | L31: =1+3+4+1+6+6+1+2+1 -> 25 | M31: =13 -> 13 | N31: 5 | O31: =101+1+19+12+2+28+1+38+4+19+1+2+11 -> 239 | P31: 4 | Q31: =6+3+1+10+1+2+3 -> 26 | R31: 2 | S31: 1 | T31: 0 | U31: 5 | V31: 0
B32: Fibre/Filament | C32: 41 | D32: =1+2+2+11+2+3+3+2 -> 26 | E32: 0 | F32: 0 | G32: 0 | H32: 0 | I32: 0 | J32: 0 | K32: =5+7+3+1+32 -> 48 | L32: =1+2+1 -> 4 | M32: 4 | N32: 0 | O32: =8+2+1+2 -> 13 | P32: 9 | Q32: 0 | R32: 0 | S32: 0 | T32: 0 | U32: 0 | V32: 0
B33: Foam | C33: 33 | D33: =5+1+1+2+1+2+1+2+1+2+1+3+2+2+4+3+1+3 -> 37 | E33: 2 | F33: 6 | G33: 0 | H33: 0 | I33: 0 | J33: 0 | K33: 136 | L33: =44 -> 44 | M33: =7+2+1+6+1+2+1+1 -> 21 | N33: 4 | O33: 212 | P33: 3 | Q33: 32 | R33: 3 | S33: 0 | T33: 0 | U33: 0 | V33: 0
B34: Pellet/Bead | C34: 507 | D34: =150+62+6+1+4+5+3+3+5+16+5+2+3+5+1+1+4+2+2+3+3+3+2+4+1+4+3+5+2+3+1+3+3+4+3+4+2+2+2+7+4+1+7+3+3+3+2+3+2+1+2+6+1+4+7+1+3+4+1+3+2+1+11+3+4+5+1+3+4+4 -> 443 | E34: =17+6+2+2 -> 27 | F34: =28+3+7+2+4+3+4+1+2+1+3+3 -> 61 | G34: 0 | H34: 0 | I34: 0 | J34: 0 | K34: =2+1+119+17+10+18+1+2+1+2 -> 173 | L34: =101+3+4+11+8+4+3 -> 134 | M34: =23+2+2+1+4+1+1+3+1 -> 38 | N34: 5 | O34: =195+8+21+10+10+2+1+1 -> 248 | P34: 0 | Q34: =4+69+1+3+10+11+1+2 -> 101 | R34: =13+2+5+1+3 -> 24 | S34: 0 | T34: 0 | U34: 0 | V34: 0
B35: Film | C35: 14 | D35: 5 | E35: 0 | F35: 1 | G35: 0 | H35: 0 | I35: 0 | J35: 0 | K35: 0 | L35: 0 | M35: 0 | N35: 0 | O35: 10 | P35: 1 | Q35: 3 | R35: 0 | S35: 0 | T35: 0 | U35: 0 | V35: 0
B36: Other | C36: 0 | D36: 0 | E36: 0 | F36: 0 | G36: 0 | H36: 0 | I36: 0 | J36: 0 | K36: 2 | L36: 0 | M36: 0 | N36: 0 | O36: 0 | P36: 0 | Q36: 0 | R36: 0 | S36: 0 | T36: 0 | U36: 0 | V36: 0
B37: TOTAL | C37: =SUM(C31:C36) -> 839 | D37: 706 | E37: 45 | F37: 117 | G37: 4 | H37: 2 | I37: 0 | J37: 0 | K37: 496 | L37: 207 | M37: 76 | N37: 14 | O37: 722 | P37: 17 | Q37: 162 | R37: 29 | S37: 1 | T37: 0 | U37: 5 | V37: 0
B38: Blue | C38: 87 | D38: =5+1+3+2+14+4+1+2+5+2+1 -> 40 | E38: 2 | F38: 6 | G38: 2 | H38: 0 | I38: 0 | J38: 0 | K38: =10+4+7 -> 21 | L38: =3+4+2 -> 9 | M38: =4+2+2+1+1 -> 10 | N38: 1 | O38: =19+2+10 -> 31 | P38: 1 | Q38: =4+2 -> 6 | R38: 2 | S38: 0 | T38: 0 | U38: 1 | V38: 0
B39: Red | C39: 24 | D39: =3+3+3 -> 9 | E39: 0 | F39: 3 | G39: 0 | H39: 0 | I39: 0 | J39: 0 | K39: 2 | L39: 1 | M39: 1 | N39: 0 | O39: 11 | P39: 0 | Q39: 0 | R39: 0 | S39: 0 | T39: 0 | U39: 0 | V39: 0
B40: Yellow | C40: 4 | D40: 6 | E40: 1 | F40: 0 | G40: 0 | H40: 0 | I40: 0 | J40: 0 | K40: 5 | L40: 0 | M40: 0 | N40: 0 | O40: 2 | P40: 0 | Q40: 0 | R40: 0 | S40: 0 | T40: 0 | U40: 0 | V40: 0
B41: White | C41: 116 | D41: 109 | E41: =2+1+2 -> 5 | F41: =2+2+4+1+1+3+1+3 -> 17 | G41: 0 | H41: 0 | I41: 0 | J41: 0 | K41: =2+136+17+32 -> 187 | L41: =4+3+44+1 -> 52 | M41: =7+2+1+6+1+1+3+1+1+1 -> 24 | N41: 5 | O41: =10+212+19+8 -> 249 | P41: 6 | Q41: =10+32+3 -> 45 | R41: 4 | S41: 0 | T41: 0 | U41: 2 | V41: 0
B42: Black | C42: 28 | D42: =5+5+2+1+1+1+2+8+2+2+2+1+4+5 -> 41 | E42: 0 | F42: 4 | G42: 0 | H42: 0 | I42: 0 | J42: 0 | K42: =17+6 -> 23 | L42: 8 | M42: 1 | N42: 0 | O42: =8+12 -> 20 | P42: 1 | Q42: 3 | R42: 3 | S42: 0 | T42: 0 | U42: 0 | V42: 0
B43: Orange | C43: 0 | D43: 0 | E43: 0 | F43: 0 | G43: 0 | H43: 0 | I43: 0 | J43: 0 | K43: 1 | L43: 1 | M43: 0 | N43: 0 | O43: 3 | P43: 0 | Q43: 0 | R43: 0 | S43: 0 | T43: 0 | U43: 0 | V43: 0
B44: Brown | C44: 0 | D44: 0 | E44: 0 | F44: 0 | G44: 0 | H44: 0 | I44: 0 | J44: 0 | K44: 2 | L44: 0 | M44: 0 | N44: 0 | O44: 0 | P44: 1 | Q44: 0 | R44: 0 | S44: 0 | T44: 0 | U44: 0 | V44: 0
B45: Opaque | C45: 324 | D45: 359 | E45: =17+4 -> 21 | F45: =39-3 -> 36 | G45: 2 | H45: 2 | I45: 0 | J45: 0 | K45: =119+62+1 -> 182 | L45: =6+101 -> 107 | M45: =23+1+1+1+2+1+1+1 -> 31 | N45: 3 | O45: =195+101+2 -> 298 | P45: 4 | Q45: =69+10 -> 79 | R45: 14 | S45: 0 | T45: 0 | U45: 2 | V45: 0
B46: Grey | C46: 96 | D46: =3+1+1+1+1+2+6+2+3+2+5+2+2+4+2+1+2+3+7+2+3+1+9 -> 65 | E46: 8 | F46: =7+2+2+2+2+2+4 -> 21 | G46: 0 | H46: 0 | I46: 0 | J46: 0 | K46: =18+11 -> 29 | L46: =6+11 -> 17 | M46: 6 | N46: 0 | O46: =21+28 -> 49 | P46: 2 | Q46: 12 | R46: 5 | S46: 0 | T46: 0 | U46: 0 | V46: 0
B47: Green | C47: =35+1+3+1+4+1+4+2+2+6 -> 59 | D47: =2+2+15+4+3+4+4 -> 34 | E47: 3 | F47: 7 | G47: 0 | H47: 0 | I47: 0 | J47: 0 | K47: =2+14+5 -> 21 | L47: 6 | M47: 2 | N47: 0 | O47: =2+38+1 -> 41 | P47: 0 | Q47: 7 | R47: 1 | S47: 1 | T47: 0 | U47: 0 | V47: 0
B48: Transparent | C48: 90 | D48: =1+6+5+15+8+6 -> 41 | E48: 5 | F48: =25-3 -> 22 | G48: 0 | H48: 0 | I48: 0 | J48: 0 | K48: =16 -> 16 | L48: 5 | M48: 0 | N48: 0 | O48: =4+10 -> 14 | P48: 2 | Q48: =1+3+1 -> 5 | R48: 0 | S48: 0 | T48: 0 | U48: 0 | V48: 0
B49: Purple | C49: 1 | D49: 1 | E49: 0 | F49: 0 | G49: 0 | H49: 0 | I49: 0 | J49: 0 | K49: 3 | L49: 0 | M49: 0 | N49: 0 | O49: 1 | P49: 0 | Q49: 0 | R49: 0 | S49: 0 | T49: 0 | U49: 0 | V49: 0
B50: Pink | C50: 2 | D50: 1 | E50: 0 | F50: 0 | G50: 0 | H50: 0 | I50: 0 | J50: 0 | K50: 2 | L50: 1 | M50: 1 | N50: 0 | O50: 2 | P50: 0 | Q50: 1 | R50: 0 | S50: 0 | T50: 0 | U50: 0 | V50: 0
B51: Cream | C51: 2 | D51: 0 | E51: 0 | F51: 0 | G51: 0 | H51: 0 | I51: 0 | J51: 0 | K51: 2 | L51: 0 | M51: 0 | N51: 0 | O51: 1 | P51: 0 | Q51: 2 | R51: 0 | S51: 0 | T51: 0 | U51: 0 | V51: 0
B52: Multi-coloured | C52: 6 | D52: 0 | E52: 0 | F52: 1 | G52: 0 | H52: 0 | I52: 0 | J52: 0 | K52: 0 | L52: 0 | M52: 0 | N52: 0 | O52: 0 | P52: 0 | Q52: 2 | R52: 0 | S52: 0 | T52: 0 | U52: 0 | V52: 0
B53: TOTAL | C53: =SUM(C38:C52) -> 839 | D53: 706 | E53: 45 | F53: 117 | G53: 4 | H53: 2 | I53: 0 | J53: 0 | K53: 496 | L53: 207 | M53: 76 | N53: 9 | O53: 722 | P53: 17 | Q53: 162 | R53: 29 | S53: 1 | T53: 0 | U53: 5 | V53: 0
B54: >1mm | C54: =76.6219-76.1661 -> 0.4558 | D54: =13.1649-12.1168 -> 1.0481 | E54: =17.638-17.5911 -> 0.0469 | F54: =17.8618-17.8457 -> 0.0161 | G54: 0.0043 | H54: 0.0023 | I54: 0.001 | J54: 0 | K54: =12.1626-11.7826 -> 0.38 | L54: =16.417-16.357 -> 0.06 | M54: =17.8778-17.8454 -> 0.0324 | N54: =16.2636-16.2277 -> 0.0359 | O54: 1.1579 | P54: =17.3424-17.3376 -> 0.0048 | Q54: =18.0617-17.8736 -> 0.1881 | R54: =16.3031-16.2843 -> 0.0188 | S54: =16.3605-16.3481 -> 0.0124 | T54: 0 | U54: =16.4109-16.3288 -> 0.0821 | V54: 0.0006
B55: Fragment | C55: =470+14+4+2+3+5+6+4+4+4+4+2+7+5+8+3+5+6+6+10+3+4+4+5+4+2+5+3+4+5+4+3+2+7+9+4+2+11+6+1 -> 660 | D55: =1+12+5+4+2+3+3+7+3+3+10+3+2+1+1+6+4+5+6+2+2+1+3+5+3+3+6+3+6+2+3+2+6+4+8+7+3+4+13+10+2+8+8+15+7+12+9+8+15+9+4+4+8+8+12+12+9+12+7+3+7+7+7+3+11+8+5+3+6+4+11+3+4+5+3+7+4+4+4+6+7+1+1+14+7+7+4+8+8+5+9+6+4+12+18+17+6+5+5+5+5+4+13+8+6+9+3+6+5+13+5+7+5+4+5+4+8+5+4+6+4+6+12+7+7+6+4+4+7+6+10+10+7+10+9+11+11+12+11+10+13+16+12+9+10+7+16+10+7+14+8+11+7+8+8+6+19+19+8+10+9+11+6+5+13+12+4+11+6+12+9+5+17+14+6+4+4+7+6+14+3+9+8+9+9+6+6 -> 1342 | E55: =7+3+6+6+17+3+1+1 -> 44 | F55: 13 | G55: 6 | H55: 3 | I55: 2 | J55: 0 | K55: =37+44+183+13+21+7+3+15+21+1+1 -> 346 | L55: =26+5+6+1+1+4+2 -> 45 | M55: =8+16+1 -> 25 | N55: =5+2+3+1+1+1 -> 13 | O55: =589+55+70+70+77+3+49+16+9+19+3+10+1 -> 971 | P55: 8 | Q55: =8+19+77+26+14+7+14+13+1 -> 179 | R55: =4+5+1+1+1 -> 12 | S55: 5 | T55: 0 | U55: 14 | V55: 3
B56: Fibre/Filament | C56: 20 | D56: =2+1+12+3+6+2+2+1+1+6+1+1+1+4+4+3+1+1+1+1+1+2+1+1+2+2+1+2+1+1+1+1+2+1+1+2+2+2+1+2+4+4+2 -> 93 | E56: 0 | F56: 1 | G56: 0 | H56: 0 | I56: 0 | J56: 0 | K56: =6+4+1+1+3+2 -> 17 | L56: 0 | M56: 0 | N56: 0 | O56: =1+6+5+1 -> 13 | P56: 0 | Q56: 1 | R56: 0 | S56: 0 | T56: 0 | U56: 0 | V56: 0
B57: Foam | C57: 16 | D57: =2+1+1+1+2+1+1+1+1+1+1+5 -> 18 | E57: 0 | F57: 0 | G57: 0 | H57: 0 | I57: 0 | J57: 0 | K57: 22 | L57: 19 | M57: 2 | N57: 0 | O57: 71 | P57: 0 | Q57: 14 | R57: 2 | S57: 0 | T57: 0 | U57: 0 | V57: 0
B58: Pellet/Bead | C58: 2 | D58: 3 | E58: 0 | F58: 0 | G58: 0 | H58: 0 | I58: 0 | J58: 0 | K58: 0 | L58: 0 | M58: 0 | N58: 0 | O58: 0 | P58: 0 | Q58: 0 | R58: 0 | S58: 0 | T58: 0 | U58: 0 | V58: 0
B59: Film | C59: 5 | D59: 0 | E59: 0 | F59: 0 | G59: 0 | H59: 2 | I59: 0 | J59: 0 | K59: 0 | L59: 0 | M59: 0 | N59: 0 | O59: =2+1+1+1 -> 5 | P59: 0 | Q59: 1 | R59: 0 | S59: 0 | T59: 0 | U59: 0 | V59: 0
B60: Other | C60: 0 | D60: 0 | E60: 0 | F60: 0 | G60: 0 | H60: 0 | I60: 0 | J60: 0 | K60: 0 | L60: 0 | M60: 0 | N60: 0 | O60: 0 | P60: 0 | Q60: 0 | R60: 0 | S60: 0 | T60: 0 | U60: 0 | V60: 0
B61: TOTAL | C61: =SUM(C55:C60) -> 703 | D61: 1456 | E61: 44 | F61: 14 | G61: 6 | H61: 5 | I61: 2 | J61: 0 | K61: 385 | L61: 64 | M61: 27 | N61: 13 | O61: 1060 | P61: 8 | Q61: 195 | R61: 14 | S61: 5 | T61: 0 | U61: 14 | V61: 3
B62: Blue | C62: 69 | D62: =2+1+12+2+5+10+2+3+10+10+7+10+5+5+1+8+6+4+11+14+2+1+1+1+1+4 -> 138 | E62: 6 | F62: 2 | G62: 4 | H62: 2 | I62: 2 | J62: 0 | K62: =37+6 -> 43 | L62: 6 | M62: 3 | N62: 0 | O62: =70+1 -> 71 | P62: 3 | Q62: 19 | R62: 1 | S62: 1 | T62: 0 | U62: 3 | V62: 1
B63: Red | C63: 16 | D63: =5+5+10+4 -> 24 | E63: 1 | F63: 1 | G63: 1 | H63: 0 | I63: 0 | J63: 0 | K63: 7 | L63: 1 | M63: 0 | N63: 0 | O63: 16 | P63: 0 | Q63: 8 | R63: 0 | S63: 0 | T63: 0 | U63: 2 | V63: 0
B64: Yellow | C64: 14 | D64: =9+6 -> 15 | E64: 1 | F64: 0 | G64: 0 | H64: 0 | I64: 0 | J64: 0 | K64: 3 | L64: 0 | M64: 0 | N64: 1 | O64: 10 | P64: 0 | Q64: 0 | R64: 0 | S64: 0 | T64: 0 | U64: 0 | V64: 0
B65: White | C65: 69 | D65: =6+1+2+1+1+1+1+1+12+2+5+3+1+2+2+1+1+1+1+1+1+2+1+2+6+4+3+1+1+1+1+1+2+2+1+3+3+2+2+3+3+4+3+3+8+5+6+5+7+103+3+3+4+1+2+2+4+2+5+4+5+3+7 -> 280 | E65: 3 | F65: 2 | G65: 0 | H65: 1 | I65: 0 | J65: 0 | K65: =15+2+22 -> 39 | L65: =5+19 -> 24 | M65: 9 | N65: 3 | O65: =55+5+71+1 -> 132 | P65: 1 | Q65: =14+14+1 -> 29 | R65: 3 | S65: 1 | T65: 0 | U65: 0 | V65: 0
B66: Black | C66: 36 | D66: =2+8+6+63 -> 79 | E66: 0 | F66: 0 | G66: 0 | H66: 0 | I66: 0 | J66: 0 | K66: =21+3 -> 24 | L66: 1 | M66: 0 | N66: 1 | O66: 77 | P66: 0 | Q66: 7 | R66: 1 | S66: 0 | T66: 0 | U66: 0 | V66: 0
B67: Opaque | C67: 260 | D67: 645 | E67: 17 | F67: 2 | G67: 1 | H67: 1 | I67: 0 | J67: 0 | K67: =183+4 -> 187 | L67: 26 | M67: 0 | N67: 5 | O67: =589+6 -> 595 | P67: 2 | Q67: 77 | R67: 5 | S67: 2 | T67: 0 | U67: 7 | V67: 0
B68: Grey | C68: 32 | D68: =1+1+1+2+1+1+2+4+1+1+7+5+7 -> 34 | E68: 3 | F68: 2 | G68: 0 | H68: 0 | I68: 0 | J68: 0 | K68: 21 | L68: 2 | M68: 11 | N68: 1 | O68: 49 | P68: 0 | Q68: 13 | R68: 0 | S68: 1 | T68: 0 | U68: 0 | V68: 0
B69: Green | C69: 70 | D69: =47+13+10+13+19+39+12+11+6 -> 170 | E69: 7 | F69: 1 | G69: 0 | H69: 1 | I69: 0 | J69: 0 | K69: 44 | L69: 4 | M69: 2 | N69: 2 | O69: 72 | P69: 2 | Q69: 26 | R69: 4 | S69: 0 | T69: 0 | U69: 2 | V69: 2
B70: Transparent | C70: 135 | D70: =10+20+5+26 -> 61 | E70: 6 | F70: 4 | G70: 0 | H70: 0 | I70: 0 | J70: 0 | K70: 13 | L70: 0 | M70: 2 | N70: 0 | O70: 21 | P70: 0 | Q70: 15 | R70: 0 | S70: 0 | T70: 0 | U70: 0 | V70: 0
B71: Cream | C71: 0 | D71: 0 | E71: 0 | F71: 0 | G71: 0 | H71: 0 | I71: 0 | J71: 0 | K71: 0 | L71: 0 | M71: 0 | N71: 0 | O71: 3 | P71: 0 | Q71: 0 | R71: 0 | S71: 0 | T71: 0 | U71: 0 | V71: 0
B72: Brown | C72: 0 | D72: 0 | E72: 0 | F72: 0 | G72: 0 | H72: 0 | I72: 0 | J72: 0 | K72: 0 | L72: 0 | M72: 0 | N72: 0 | O72: 1 | P72: 0 | Q72: 0 | R72: 0 | S72: 0 | T72: 0 | U72: 0 | V72: 0
B73: Pink | C73: 1 | D73: 8 | E73: 0 | F73: 0 | G73: 0 | H73: 0 | I73: 0 | J73: 0 | K73: 1 | L73: 0 | M73: 0 | N73: 0 | O73: 10 | P73: 0 | Q73: 1 | R73: 0 | S73: 0 | T73: 0 | U73: 0 | V73: 0
B74: Orange | C74: 1 | D74: 1 | E74: 0 | F74: 0 | G74: 0 | H74: 0 | I74: 0 | J74: 0 | K74: 2 | L74: 0 | M74: 0 | N74: 0 | O74: 0 | P74: 0 | Q74: 0 | R74: 0 | S74: 0 | T74: 0 | U74: 0 | V74: 0
B75: Purple | C75: 0 | D75: 1 | E75: 0 | F75: 0 | G75: 0 | H75: 0 | I75: 0 | J75: 0 | K75: 1 | L75: 0 | M75: 0 | N75: 0 | O75: 3 | P75: 0 | Q75: 0 | R75: 0 | S75: 0 | T75: 0 | U75: 0 | V75: 0
B76: TOTAL | C76: =SUM(C62:C75) -> 703 | D76: 1456 | E76: 44 | F76: 14 | G76: 6 | H76: 5 | I76: 2 | J76: 0 | K76: 385 | L76: 64 | M76: 27 | N76: 13 | O76: 1060 | P76: 8 | Q76: 195 | R76: 14 | S76: 5 | T76: 0 | U76: 14 | V76: 3

Sheet Blank samples
B3: Blank | C3: Date | D3: Count of Microplastics | E3: Morphologies present
B4: 1 | C4: 13.07.2021 | D4: Zero plastics identified after exposing sample to air and passing through sieve cascade | E4: 0
B5: 2 | C5: 14.07.2021 | D5: Zero plastics identified after exposing sample to air and passing through sieve cascade | E5: 0
B6: 3 | C6: 23.07.2021 | D6: Zero plastics identified after exposing sample to air and passing through sieve cascade | E6: 0
B7: 4 | C7: 30.07.2021 | D7: Zero plastics identified after exposing sample to air and passing through sieve cascade | E7: 0
B8: 5 | C8: 07.08.2021 | D8: Zero plastics identified after exposing sample to air and passing through sieve cascade | E8: 0
B9: 6 | C9: 23.08.2021 | D9: Zero plastics identified after exposing sample to air and passing through sieve cascade | E9: 0
B10: 7 | C10: 31.08.2021 | D10: Zero plastics identified after exposing sample to air and passing through sieve cascade | E10: 0

Sheet MP by Colour
A1: SAMPLE ID | B1: MS01A | C1: MS01B | D1: MD01A | E1: MD01B | F1: MS02A | G1: MS02B | H1: MD02A | I1: MD02B | J1: MS03A | K1: MS03B | L1: MD03A | M1: MD03B | N1: MS04A | O1: MS04B | P1: MD04A | Q1: MD04B | R1: MS05A | S1: MS05B | T1: MD05A | U1: MD05B
A2: Blue | B2: 20 | C2: 3 | D2: 2 | E2: 4 | F2: 0 | G2: 1 | H2: 0 | I2: 0 | J2: =2+3+1 -> 6 | K2: 2 | L2: 0 | M2: 0 | N2: 3 | O2: 0 | P2: 1 | Q2: 0 | R2: 1 | S2: 0 | T2: 0 | U2: 0
A3: Red | B3: 9 | C3: 1 | D3: 0 | E3: 1 | F3: 0 | G3: 0 | H3: 0 | I3: 0 | J3: 2 | K3: 0 | L3: 0 | M3: 0 | N3: 1 | O3: 0 | P3: 1 | Q3: 0 | R3: 0 | S3: 0 | T3: 0 | U3: 0
A4: Yellow | B4: 6 | C4: 0 | D4: 0 | E4: 0 | F4: 0 | G4: 0 | H4: 0 | I4: 0 | J4: 0 | K4: 0 | L4: 0 | M4: 0 | N4: 0 | O4: 0 | P4: 1 | Q4: 1 | R4: 0 | S4: 0 | T4: 0 | U4: 0
A5: White | B5: 14 | C5: 12 | D5: 2 | E5: 6 | F5: 0 | G5: 0 | H5: 0 | I5: 0 | J5: 26 | K5: 5 | L5: 0 | M5: 0 | N5: 9 | O5: 4 | P5: 4 | Q5: 1 | R5: 0 | S5: 0 | T5: 0 | U5: 0
A6: Black | B6: 7 | C6: 0 | D6: 0 | E6: 0 | F6: 1 | G6: 0 | H6: 0 | I6: 0 | J6: 0 | K6: 0 | L6: 0 | M6: 0 | N6: 1 | O6: 0 | P6: 0 | Q6: 0 | R6: 0 | S6: 0 | T6: 0 | U6: 0
A7: Brown | B7: 1 | C7: 0 | D7: 0 | E7: 0 | F7: 0 | G7: 0 | H7: 0 | I7: 0 | J7: 0 | K7: 0 | L7: 0 | M7: 0 | N7: 0 | O7: 0 | P7: 0 | Q7: 0 | R7: 0 | S7: 0 | T7: 0 | U7: 0
A8: Opaque | B8: 44 | C8: 5 | D8: 0 | E8: 3 | F8: 0 | G8: 0 | H8: 0 | I8: 0 | J8: =3 -> 3 | K8: 0 | L8: 0 | M8: 0 | N8: 7 | O8: 0 | P8: 3 | Q8: 1 | R8: 0 | S8: 0 | T8: 0 | U8: 0
A9: Grey | B9: 1 | C9: 1 | D9: 1 | E9: 1 | F9: 0 | G9: 0 | H9: 0 | I9: 0 | J9: 2 | K9: 1 | L9: 0 | M9: 0 | N9: 0 | O9: 2 | P9: 0 | Q9: 0 | R9: 0 | S9: 0 | T9: 0 | U9: 0
A10: Green | B10: 5 | C10: 1 | D10: 0 | E10: 0 | F10: 0 | G10: 0 | H10: 0 | I10: 1 | J10: 5 | K10: 0 | L10: 0 | M10: 0 | N10: 1 | O10: 1 | P10: 2 | Q10: 0 | R10: 0 | S10: 0 | T10: 0 | U10: 0
A11: Transparent | B11: 0 | C11: 7 | D11: 0 | E11: 2 | F11: 0 | G11: 0 | H11: 0 | I11: 0 | J11: =4+2 -> 6 | K11: 1 | L11: 0 | M11: 0 | N11: 1 | O11: 3 | P11: 0 | Q11: 0 | R11: 0 | S11: 0 | T11: 0 | U11: 0
A12: Orange | B12: 3 | C12: 0 | D12: 0 | E12: 0 | F12: 0 | G12: 0 | H12: 0 | I12: 0 | J12: 0 | K12: 0 | L12: 0 | M12: 0 | N12: 0 | O12: 0 | P12: 0 | Q12: 0 | R12: 0 | S12: 0 | T12: 0 | U12: 0
A13: Cream | B13: 1 | C13: 0 | D13: 1 | E13: 0 | F13: 0 | G13: 0 | H13: 0 | I13: 0 | J13: 1 | K13: 0 | L13: 0 | M13: 0 | N13: 0 | O13: 0 | P13: 0 | Q13: 0 | R13: 0 | S13: 0 | T13: 0 | U13: 0
A14: Metallic | B14: 0 | C14: 1 | D14: 0 | E14: 0 | F14: 0 | G14: 0 | H14: 0 | I14: 0 | J14: 0 | K14: 0 | L14: 0 | M14: 0 | N14: 0 | O14: 0 | P14: 0 | Q14: 0 | R14: 0 | S14: 0 | T14: 0 | U14: 1
A15: Multi-coloured | B15: 5 | C15: 0 | D15: 0 | E15: 0 | F15: 0 | G15: 0 | H15: 0 | I15: 0 | J15: 0 | K15: 0 | L15: 0 | M15: 0 | N15: 0 | O15: 0 | P15: 0 | Q15: 0 | R15: 0 | S15: 0 | T15: 0 | U15: 0
A16: Blue | B16: 87 | C16: =5+1+3+2+14+4+1+2+5+2+1 -> 40 | D16: 2 | E16: 6 | F16: 2 | G16: 0 | H16: 0 | I16: 0 | J16: =10+4+7 -> 21 | K16: =3+4+2 -> 9 | L16: =4+2+2+1+1 -> 10 | M16: 1 | N16: =19+2+10 -> 31 | O16: 1 | P16: =4+2 -> 6 | Q16: 2 | R16: 0 | S16: 0 | T16: 1 | U16: 0
A17: Red | B17: 24 | C17: =3+3+3 -> 9 | D17: 0 | E17: 3 | F17: 0 | G17: 0 | H17: 0 | I17: 0 | J17: 2 | K17: 1 | L17: 1 | M17: 0 | N17: 11 | O17: 0 | P17: 0 | Q17: 0 | R17: 0 | S17: 0 | T17: 0 | U17: 0
A18: Yellow | B18: 4 | C18: 6 | D18: 1 | E18: 0 | F18: 0 | G18: 0 | H18: 0 | I18: 0 | J18: 5 | K18: 0 | L18: 0 | M18: 0 | N18: 2 | O18: 0 | P18: 0 | Q18: 0 | R18: 0 | S18: 0 | T18: 0 | U18: 0
A19: White | B19: 116 | C19: 109 | D19: =2+1+2 -> 5 | E19: =2+2+4+1+1+3+1+3 -> 17 | F19: 0 | G19: 0 | H19: 0 | I19: 0 | J19: =2+136+17+32 -> 187 | K19: =4+3+44+1 -> 52 | L19: =7+2+1+6+1+1+3+1+1+1 -> 24 | M19: 5 | N19: =10+212+19+8 -> 249 | O19: 6 | P19: =10+32+3 -> 45 | Q19: 4 | R19: 0 | S19: 0 | T19: 2 | U19: 0
A20: Black | B20: 28 | C20: =5+5+2+1+1+1+2+8+2+2+2+1+4+5 -> 41 | D20: 0 | E20: 4 | F20: 0 | G20: 0 | H20: 0 | I20: 0 | J20: =17+6 -> 23 | K20: 8 | L20: 1 | M20: 0 | N20: =8+12 -> 20 | O20: 1 | P20: 3 | Q20: 3 | R20: 0 | S20: 0 | T20: 0 | U20: 0
A21: Orange | B21: 0 | C21: 0 | D21: 0 | E21: 0 | F21: 0 | G21: 0 | H21: 0 | I21: 0 | J21: 1 | K21: 1 | L21: 0 | M21: 0 | N21: 3 | O21: 0 | P21: 0 | Q21: 0 | R21: 0 | S21: 0 | T21: 0 | U21: 0
A22: Brown | B22: 0 | C22: 0 | D22: 0 | E22: 0 | F22: 0 | G22: 0 | H22: 0 | I22: 0 | J22: 2 | K22: 0 | L22: 0 | M22: 0 | N22: 0 | O22: 1 | P22: 0 | Q22: 0 | R22: 0 | S22: 0 | T22: 0 | U22: 0
A23: Opaque | B23: 324 | C23: 359 | D23: =17+4 -> 21 | E23: =39-3 -> 36 | F23: 2 | G23: 2 | H23: 0 | I23: 0 | J23: =119+62+1 -> 182 | K23: =6+101 -> 107 | L23: =23+1+1+1+2+1+1+1 -> 31 | M23: 3 | N23: =195+101+2 -> 298 | O23: 4 | P23: =69+10 -> 79 | Q23: 14 | R23: 0 | S23: 0 | T23: 2 | U23: 0
A24: Grey | B24: 96 | C24: =3+1+1+1+1+2+6+2+3+2+5+2+2+4+2+1+2+3+7+2+3+1+9 -> 65 | D24: 8 | E24: =7+2+2+2+2+2+4 -> 21 | F24: 0 | G24: 0 | H24: 0 | I24: 0 | J24: =18+11 -> 29 | K24: =6+11 -> 17 | L24: 6 | M24: 0 | N24: =21+28 -> 49 | O24: 2 | P24: 12 | Q24: 5 | R24: 0 | S24: 0 | T24: 0 | U24: 0
A25: Green | B25: =35+1+3+1+4+1+4+2+2+6 -> 59 | C25: =2+2+15+4+3+4+4 -> 34 | D25: 3 | E25: 7 | F25: 0 | G25: 0 | H25: 0 | I25: 0 | J25: =2+14+5 -> 21 | K25: 6 | L25: 2 | M25: 0 | N25: =2+38+1 -> 41 | O25: 0 | P25: 7 | Q25: 1 | R25: 1 | S25: 0 | T25: 0 | U25: 0
A26: Transparent | B26: 90 | C26: =1+6+5+15+8+6 -> 41 | D26: 5 | E26: =25-3 -> 22 | F26: 0 | G26: 0 | H26: 0 | I26: 0 | J26: =16 -> 16 | K26: 5 | L26: 0 | M26: 0 | N26: =4+10 -> 14 | O26: 2 | P26: =1+3+1 -> 5 | Q26: 0 | R26: 0 | S26: 0 | T26: 0 | U26: 0
A27: Purple | B27: 1 | C27: 1 | D27: 0 | E27: 0 | F27: 0 | G27: 0 | H27: 0 | I27: 0 | J27: 3 | K27: 0 | L27: 0 | M27: 0 | N27: 1 | O27: 0 | P27: 0 | Q27: 0 | R27: 0 | S27: 0 | T27: 0 | U27: 0
A28: Pink | B28: 2 | C28: 1 | D28: 0 | E28: 0 | F28: 0 | G28: 0 | H28: 0 | I28: 0 | J28: 2 | K28: 1 | L28: 1 | M28: 0 | N28: 2 | O28: 0 | P28: 1 | Q28: 0 | R28: 0 | S28: 0 | T28: 0 | U28: 0
A29: Cream | B29: 2 | C29: 0 | D29: 0 | E29: 0 | F29: 0 | G29: 0 | H29: 0 | I29: 0 | J29: 2 | K29: 0 | L29: 0 | M29: 0 | N29: 1 | O29: 0 | P29: 2 | Q29: 0 | R29: 0 | S29: 0 | T29: 0 | U29: 0
A30: Multi-coloured | B30: 6 | C30: 0 | D30: 0 | E30: 1 | F30: 0 | G30: 0 | H30: 0 | I30: 0 | J30: 0 | K30: 0 | L30: 0 | M30: 0 | N30: 0 | O30: 0 | P30: 2 | Q30: 0 | R30: 0 | S30: 0 | T30: 0 | U30: 0
A31: Blue | B31: 69 | C31: =2+1+12+2+5+10+2+3+10+10+7+10+5+5+1+8+6+4+11+14+2+1+1+1+1+4 -> 138 | D31: 6 | E31: 2 | F31: 4 | G31: 2 | H31: 2 | I31: 0 | J31: =37+6 -> 43 | K31: 6 | L31: 3 | M31: 0 | N31: =70+1 -> 71 | O31: 3 | P31: 19 | Q31: 1 | R31: 1 | S31: 0 | T31: 3 | U31: 1
A32: Red | B32: 16 | C32: =5+5+10+4 -> 24 | D32: 1 | E32: 1 | F32: 1 | G32: 0 | H32: 0 | I32: 0 | J32: 7 | K32: 1 | L32: 0 | M32: 0 | N32: 16 | O32: 0 | P32: 8 | Q32: 0 | R32: 0 | S32: 0 | T32: 2 | U32: 0
A33: Yellow | B33: 14 | C33: =9+6 -> 15 | D33: 1 | E33: 0 | F33: 0 | G33: 0 | H33: 0 | I33: 0 | J33: 3 | K33: 0 | L33: 0 | M33: 1 | N33: 10 | O33: 0 | P33: 0 | Q33: 0 | R33: 0 | S33: 0 | T33: 0 | U33: 0
A34: White | B34: 69 | C34: =6+1+2+1+1+1+1+1+12+2+5+3+1+2+2+1+1+1+1+1+1+2+1+2+6+4+3+1+1+1+1+1+2+2+1+3+3+2+2+3+3+4+3+3+8+5+6+5+7+103+3+3+4+1+2+2+4+2+5+4+5+3+7 -> 280 | D34: 3 | E34: 2 | F34: 0 | G34: 1 | H34: 0 | I34: 0 | J34: =15+2+22 -> 39 | K34: =5+19 -> 24 | L34: 9 | M34: 3 | N34: =55+5+71+1 -> 132 | O34: 1 | P34: =14+14+1 -> 29 | Q34: 3 | R34: 1 | S34: 0 | T34: 0 | U34: 0
A35: Black | B35: 36 | C35: =2+8+6+63 -> 79 | D35: 0 | E35: 0 | F35: 0 | G35: 0 | H35: 0 | I35: 0 | J35: =21+3 -> 24 | K35: 1 | L35: 0 | M35: 1 | N35: 77 | O35: 0 | P35: 7 | Q35: 1 | R35: 0 | S35: 0 | T35: 0 | U35: 0
A36: Opaque | B36: 260 | C36: 655 | D36: 17 | E36: 2 | F36: 1 | G36: 1 | H36: 0 | I36: 0 | J36: =183+4 -> 187 | K36: 26 | L36: 0 | M36: 5 | N36: =589+6 -> 595 | O36: 2 | P36: 77 | Q36: 5 | R36: 2 | S36: 0 | T36: 7 | U36: 0
A37: Grey | B37: 32 | C37: =1+1+1+2+1+1+2+4+1+1+7+5+7 -> 34 | D37: 3 | E37: 2 | F37: 0 | G37: 0 | H37: 0 | I37: 0 | J37: 21 | K37: 2 | L37: 11 | M37: 1 | N37: 49 | O37: 0 | P37: 13 | Q37: 0 | R37: 1 | S37: 0 | T37: 0 | U37: 0
A38: Green | B38: 70 | C38: =47+13+10+13+19+39+12+11+6 -> 170 | D38: 7 | E38: 1 | F38: 0 | G38: 1 | H38: 0 | I38: 0 | J38: 44 | K38: 4 | L38: 2 | M38: 2 | N38: 72 | O38: 2 | P38: 26 | Q38: 4 | R38: 0 | S38: 0 | T38: 2 | U38: 2
A39: Transparent | B39: 135 | C39: =10+20+5+26 -> 61 | D39: 6 | E39: 4 | F39: 0 | G39: 0 | H39: 0 | I39: 0 | J39: 13 | K39: 0 | L39: 2 | M39: 0 | N39: 21 | O39: 0 | P39: 15 | Q39: 0 | R39: 0 | S39: 0 | T39: 0 | U39: 0
A40: Cream | B40: 0 | C40: 0 | D40: 0 | E40: 0 | F40: 0 | G40: 0 | H40: 0 | I40: 0 | J40: 0 | K40: 0 | L40: 0 | M40: 0 | N40: 3 | O40: 0 | P40: 0 | Q40: 0 | R40: 0 | S40: 0 | T40: 0 | U40: 0
A41: Brown | B41: 0 | C41: 0 | D41: 0 | E41: 0 | F41: 0 | G41: 0 | H41: 0 | I41: 0 | J41: 0 | K41: 0 | L41: 0 | M41: 0 | N41: 1 | O41: 0 | P41: 0 | Q41: 0 | R41: 0 | S41: 0 | T41: 0 | U41: 0
A42: Pink | B42: 1 | C42: 8 | D42: 0 | E42: 0 | F42: 0 | G42: 0 | H42: 0 | I42: 0 | J42: 1 | K42: 0 | L42: 0 | M42: 0 | N42: 10 | O42: 0 | P42: 1 | Q42: 0 | R42: 0 | S42: 0 | T42: 0 | U42: 0
A43: Orange | B43: 1 | C43: 1 | D43: 0 | E43: 0 | F43: 0 | G43: 0 | H43: 0 | I43: 0 | J43: 2 | K43: 0 | L43: 0 | M43: 0 | N43: 0 | O43: 0 | P43: 0 | Q43: 0 | R43: 0 | S43: 0 | T43: 0 | U43: 0
A44: Purple | B44: 0 | C44: 1 | D44: 0 | E44: 0 | F44: 0 | G44: 0 | H44: 0 | I44: 0 | J44: 1 | K44: 0 | L44: 0 | M44: 0 | N44: 3 | O44: 0 | P44: 0 | Q44: 0 | R44: 0 | S44: 0 | T44: 0 | U44: 0

Sheet Colour_Data_Vis
A3: Colour | B3: TOTAL
A4: Blue | B4: 636
A5: Red | B5: 143
A6: Yellow | B6: 70
A7: White | B7: 1500
A8: Black | B8: 367
A9: Brown | B9: 5
A10: Opaque | B10: 3372
A11: Grey | B11: 488
A12: Green | B12: 607
A13: Transparent | B13: 477
A14: Orange | B14: 12
A15: Cream | B15: 13
A16: Metallic | B16: 2
A17: Multi-coloured | B17: 17
A18: Pink | B18: 31
A19: Purple | B19: 11

Sheet MP by Fraction
A2: SAMPLE ID | B2: MS01A | C2: MS01B | D2: MD01A | E2: MD01B | F2: MS02A | G2: MS02B | H2: MD02A | I2: MD02B | J2: MS03A | K2: MS03B | L2: MD03A | M2: MD03B | N2: MS04A | O2: MS04B | P2: MD04A | Q2: MD04B | R2: MS05A | S2: MS05B | T2: MD05A | U2: MD05B
A3: Total crude mass | B3: 68.080418 | C3: 34.13209 | D3: 34.084448 | E3: 36.13986 | F3: 59.77164 | G3: 59.93283 | H3: 59.81343 | I3: 59.8791 | J3: 31.511796 | K3: 31.618488 | L3: 31.423932 | M3: 31.863252 | N3: 31.490432 | O3: 31.634596 | P3: 31.647132 | Q3: 31.509236 | R3: 26.462128 | S3: 52.918992 | T3: 52.676848 | U3: 52.85056
A4: 5.6mm | B4: =88.0381-76.0359 -> 12.0022 | C4: 2.2434 | D4: =11.6965-11.6555 -> 0.041 | E4: 0.8885 | F4: 0.0421 | G4: 0.0092 | H4: 0 | I4: =16.3789-16.3551 -> 0.0238 | J4: 5.9693 | K4: =16.5763-16.2431 -> 0.3332 | L4: 0 | M4: 0 | N4: =13.9017-12.1784 -> 1.7233 | O4: =19.791-17.8987 -> 1.8923 | P4: =12.6093-12.2316 -> 0.3777 | Q4: =18.3562-17.6884 -> 0.6678 | R4: 0.0323 | S4: 0 | T4: 0 | U4: 0
A5: 2mm | B5: 16.3155 | C5: 10.2914 | D5: =18.5008-17.844 -> 0.6568 | E5: =123.4952-121.9484 -> 1.5468 | F5: 0.006 | G5: =17.782-17.7712 -> 0.0108 | H5: 0 | I5: 0 | J5: 5.8043 | K5: =20.1633-16.247 -> 3.9163 | L5: =33.837-32.8204 -> 1.0166 | M5: =16.4737-16.3117 -> 0.162 | N5: =26.9094-17.9909 -> 8.9185 | O5: =17.9136-17.5534 -> 0.3602 | P5: =20.3198-17.7906 -> 2.5292 | Q5: =18.55-17.8442 -> 0.7058 | R5: =17.3207-17.3165 -> 0.0042 | S5: 0 | T5: =17.3575-17.3117 -> 0.0458 | U5: 0
A6: 1mm | B6: =76.6219-76.1661 -> 0.4558 | C6: =13.1649-12.1168 -> 1.0481 | D6: =17.638-17.5911 -> 0.0469 | E6: =17.8618-17.8457 -> 0.0161 | F6: 0.0043 | G6: 0.0023 | H6: 0.001 | I6: 0 | J6: =12.1626-11.7826 -> 0.38 | K6: =16.417-16.357 -> 0.06 | L6: =17.8778-17.8454 -> 0.0324 | M6: =16.2636-16.2277 -> 0.0359 | N6: 1.1579 | O6: =17.3424-17.3376 -> 0.0048 | P6: =18.0617-17.8736 -> 0.1881 | Q6: =16.3031-16.2843 -> 0.0188 | R6: =16.3605-16.3481 -> 0.0124 | S6: 0 | T6: =16.4109-16.3288 -> 0.0821 | U6: 0.0006

Sheet MPsediment ratio
A3: Station | B3: Sampling Locations | C3: Surface Duplicates | D3: SAMPLE ID | E3: Sediment horizon | F3: Sediment code | G3: Total Mass of Plastic (g) | H3: Dry weight mass of sediments (g) | I3: % Mass of MP in sample | J3: mg MP/kg dry sediment
A4: 1 | B4: Hotspot 1 | C4: A | D4: S1A | E4: surface | F4: 1 | G4: =SAMPLES!C7+SAMPLES!C30+SAMPLES!C54 -> 28.7735 | H4: 68.0804 | I4: =G4/H4 -> 42.26% | J4: =(G4*1000)/(H4/1000) -> 422639.88 | AE4: =SAMPLES!W7+SAMPLES!W30+SAMPLES!W54 -> 0.00 | AF4: =SAMPLES!X7+SAMPLES!X30+SAMPLES!X54 -> 0.00
A5: 1 | C5: A | D5: SS1A | E5: sub-surface | F5: 2 | G5: =SAMPLES!E7+SAMPLES!E30+SAMPLES!E54 -> 0.7447 | H5: 34.0844 | I5: 2.18% | J5: 21848.67
A6: 1 | C6: B | D6: S1B | E6: surface | F6: 1 | G6: =SAMPLES!D7+SAMPLES!D30+SAMPLES!D54 -> 13.5829 | H6: 34.1321 | I6: 39.80% | J6: 397951.02
A7: 1 | C7: B | D7: SS1B | E7: sub-surface | F7: 2 | G7: =SAMPLES!F7+SAMPLES!F30+SAMPLES!F54 -> 2.4514 | H7: 36.1399 | I7: 6.78% | J7: 67830.92
A8: 3 | B8: Hotspot 2 | C8: A | D8: S3A | E8: surface | F8: 1 | G8: =SAMPLES!K7+SAMPLES!K30+SAMPLES!K54 -> 12.1536 | H8: 31.5118 | I8: 38.57% | J8: 385684.14
A9: 3 | C9: A | D9: SS3A | E9: sub-surface | F9: 2 | G9: =SAMPLES!M7+SAMPLES!M30+SAMPLES!M54 -> 1.0490 | H9: 31.4239 | I9: 3.34% | J9: 33382.20
A10: 3 | C10: B | D10: S3B | E10: surface | F10: 1 | G10: =SAMPLES!L7+SAMPLES!L30+SAMPLES!L54 -> 4.3095 | H10: =SAMPLES!L5 -> 31.6185 | I10: 13.63% | J10: 136296.84
A11: 3 | C11: B | D11: SS3B | E11: sub-surface | F11: 2 | G11: =SAMPLES!N7+SAMPLES!N30+SAMPLES!N54 -> 0.1979 | H11: =SAMPLES!N5 -> 31.8633 | I11: 0.62% | J11: 6210.92
A12: 4 | B12: Hotspot 3 | C12: A | D12: S4A | E12: surface | F12: 1 | G12: =SAMPLES!O7+SAMPLES!O30+SAMPLES!O54 -> 11.7997 | H12: 31.4904 | I12: 37.47% | J12: 374707.47
A13: 4 | C13: A | D13: SS4A | E13: sub-surface | F13: 2 | G13: =SAMPLES!Q7+SAMPLES!Q30+SAMPLES!Q54 -> 3.0950 | H13: 31.6471 | I13: 9.78% | J13: 97797.17
A14: 4 | C14: B | D14: S4B | E14: surface | F14: 1 | G14: =SAMPLES!P7+SAMPLES!P30+SAMPLES!P54 -> 2.2573 | H14: =SAMPLES!P5 -> 31.6346 | I14: 7.14% | J14: 71355.42
A15: 4 | C15: B | D15: SS4B | E15: sub-surface | F15: 2 | G15: =SAMPLES!R7+SAMPLES!R30+SAMPLES!R54 -> 1.3924 | H15: 31.4215 | I15: 4.43% | J15: 44313.63
A16: 2 | B16: Least Polluted | C16: A | D16: S2A | E16: surface | F16: 1 | G16: =SAMPLES!G7+SAMPLES!G30+SAMPLES!G54 -> 0.0524 | H16: 59.7716 | I16: 0.09% | J16: 876.67
A17: 2 | C17: A | D17: SS2A | E17: sub-surface | F17: 2 | G17: =SAMPLES!I7+SAMPLES!I30+SAMPLES!I54 -> 0.0010 | H17: 59.8134 | I17: 0.002% | J17: 16.72
A18: 2 | C18: B | D18: S2B | E18: surface | F18: 1 | G18: =SAMPLES!H7+SAMPLES!H30+SAMPLES!H54 -> 0.0223 | H18: 59.9328 | I18: 0.04% | J18: 372.08
A19: 2 | C19: B | D19: SS2B | E19: sub-surface | F19: 2 | G19: =SAMPLES!J7+SAMPLES!J30+SAMPLES!J54 -> 0.0238 | H19: 59.8791 | I19: 0.04% | J19: 397.47
A20: 5 | B20: Control | C20: A | D20: S5A | E20: surface | F20: 1 | G20: =SAMPLES!S7+SAMPLES!S30+SAMPLES!S54 -> 0.0489 | H20: 26.4621 | I20: 0.18% | J20: 1847.92
A21: 5 | C21: A | D21: SS5A | E21: sub-surface | F21: 2 | G21: =SAMPLES!U7+SAMPLES!U30+SAMPLES!U54 -> 0.1279 | H21: 52.6768 | I21: 0.24% | J21: 2428.01
A22: 5 | C22: B | D22: S5B | E22: surface | F22: 1 | G22: =SAMPLES!T7+SAMPLES!T30+SAMPLES!T54 -> 0.0000 | H22: =SAMPLES!T5 -> 52.9190 | I22: 0.00% | J22: 0.00
A23: 5 | C23: B | D23: SS5B | E23: sub-surface | F23: 2 | G23: 0.0006 | H23: 52.6453 | I23: 0.001% | J23: 11.40
C54: Sample | D54: Surface | F54: Subsurface | H54: Sediment horizon
C55: A | D55: 0.4226398845 | E55: =LOG(D55) -> -0.374029521 | F55: 0.02184867421 | G55: =SQRT(F55) -> 0.1478129704 | H55: sub-surface | J55: surface
C56: A | D56: 0.3979510191 | E56: =LOG(D56) -> -0.4001703788 | F56: 0.06783092132 | G56: =SQRT(F56) -> 0.2604437009 | H56: sub-surface | J56: surface
C57: A | D57: 0.3856841419 | E57: -0.4137682176 | F57: 0.03338220055 | G57: 0.1827079652 | H57: sub-surface | J57: surface
C58: A | D58: 0.13629684 | E58: -0.865514213 | F58: 0.006210916576 | G58: 0.07880936858 | H58: sub-surface | J58: surface
C59: A | D59: 0.3747074667 | E59: -0.4263076527 | F59: 0.09779717164 | G59: 0.3127253933 | H59: sub-surface | J59: surface
C60: B | D60: 0.07135542366 | E60: -1.146573011 | F60: 0.04431362949 | G60: 0.2105080271 | H60: sub-surface | J60: surface
C61: B | D61: 0.0008766699391 | E61: -3.057163885 | F61: 1.671865332e-05 | G61: 0.004088844986 | H61: sub-surface | J61: surface
C62: B | D62: 0.0003720832138 | E62: -3.429359922 | F62: 0.0003974675638 | G62: 0.01993658857 | H62: sub-surface | J62: surface
C63: B | D63: 0.001847923946 | E63: -2.733315907 | F63: 0.002428011638 | G63: 0.04927485807 | H63: sub-surface | J63: surface
C64: B | D64: 0 | E64: =LOG(D64) ->  | F64: 1.139703659e-05 | G64: 0.003375949731 | H64: sub-surface | J64: surface
A81: Sample | B81: Sediment horizon | C81: mg MP/kg dry sediment
A82: 1 | B82: sub-surface | C82: 21848.67
A83: 2 | B83: sub-surface | C83: 67830.92
A84: 3 | B84: sub-surface | C84: 33382.20
A85: 4 | B85: sub-surface | C85: 6210.92
A86: 5 | B86: sub-surface | C86: 97797.17
A87: 6 | B87: sub-surface | C87: 44313.63
A88: 7 | B88: sub-surface | C88: 16.72
A89: 8 | B89: sub-surface | C89: 397.47
A90: 9 | B90: sub-surface | C90: 2428.01
A91: 10 | B91: sub-surface | C91: 11.40
A92: 1b | B92: surface | C92: 422639.88
A93: 2b | B93: surface | C93: 397951.02
A94: 3b | B94: surface | C94: 385684.14
A95: 4b | B95: surface | C95: 136296.84
A96: 5b | B96: surface | C96: 374707.47
A97: 6b | B97: surface | C97: 71355.42
A98: 7b | B98: surface | C98: 876.67
A99: 8b | B99: surface | C99: 372.08
A100: 9b | B100: surface | C100: 1847.92
A101: 10b | B101: surface | C101: 0.00

Sheet Normality_Test
B1: XLSTAT 2021.3.1.1183 - Normality Tests - Start time: 9/13/2021 at 12:32:33 / End time: 9/13/2021 at 12:33:09 / Microsoft Excel 16.014430
B2: Y / Dependent variables: Workbook = Chessel Bay Microplastics results_Stats(AutoRecovered) (version 2).xlsb / Sheet = MPsediment ratio / Range = 'MPsediment ratio'!$J$3:$J$23 / 20 rows and 1 column
B3: X / Qualitative: Workbook = Chessel Bay Microplastics results_Stats(AutoRecovered) (version 2).xlsb / Sheet = MPsediment ratio / Range = 'MPsediment ratio'!$A$3:$A$23 / 20 rows and 1 column
B4: Constraints: an=0
B5: Confidence interval (%): 95
B6: Tolerance: 0.0001
B7: Use least squares means: Yes
B10: Summary statistics (Quantitative data):
B12: Variable | C12: Observations | D12: Obs. with missing data | E12: Obs. without missing data | F12: Minimum | G12: Maximum | H12: Mean | I12: Std. deviation
B13: mg MP/kg dry sediment | C13: 20 | D13: 0 | E13: 20 | F13: 0.000 | G13: 422639.884 | H13: 103298.428 | I13: 154608.888
B16: Summary statistics (Qualitative data):
B18: Variable | C18: Categories | D18: Counts | E18: Frequencies | F18: %
B19: Station | C19: 1 | D19: 4 | E19: 4 | F19: 20.000
C20: 2 | D20: 4 | E20: 4 | F20: 20.000
C21: 3 | D21: 4 | E21: 4 | F21: 20.000
C22: 4 | D22: 4 | E22: 4 | F22: 20.000
C23: 5 | D23: 4 | E23: 4 | F23: 20.000
B29: Test assumptions:
B31: Test on the normality of the residuals (Shapiro-Wilk) (mg MP/kg dry sediment):
B33: W | C33: 0.893
B34: p-value (Two-tailed) | C34: 0.03010394779
B35: alpha | C35: 0.050
B37: Test interpretation:
B38: H0: The residuals follow a Normal distribution.
B39: Ha: The residuals do not follow a Normal distribution.
B40: As the computed p-value is lower than the significance level alpha=0.05, one should reject the null hypothesis H0, and accept the alternative hypothesis Ha.
B44: LS Means for factor Station:
B46: Category | C46: LS mean | D46: Standard error | E46: Lower bound (95%) | F46: Upper bound (95%)
B47: 1 | C47: 227567.625 | D47: 70131.274 | E47: 78086.352 | F47: 377048.897
B48: 2 | C48: 415.735 | D48: 70131.274 | E48: -149065.537 | F48: 149897.007
B49: 3 | C49: 140393.525 | D49: 70131.274 | E49: -9087.748 | F49: 289874.797
B50: 4 | C50: 147043.423 | D50: 70131.274 | E50: -2437.849 | F50: 296524.695
B51: 5 | C51: 1071.833 | D51: 70131.274 | E51: -148409.439 | F51: 150553.105

Sheet Sheet9_HID (hidden)
A1: 1 | C1: =-8670.34075514696+(A1-1)*4083.35493472647 -> -8670.340755 | D1: =0+1*C1-298962.5446483*(1.05+(C1-103298.428082031)^2/159070517175.939)^0.5 -> -326305.0847 | E1: 1 | G1: =332.587874014628+(E1-1)*3952.87770821688 -> 332.587874 | H1: =0+1*G1+298962.5446483*(1.05+(G1-103298.428082031)^2/159070517175.939)^0.5 -> 316251.1992
A2: 2 | C2: -4586.98582 | D2: -321426.7033 | E2: 2 | G2: 4285.465582 | H2: 319493.2781
A3: 3 | C3: -503.6308857 | D3: -316575.9642 | E3: 3 | G3: 8238.34329 | H3: 322761.6655
A4: 4 | C4: 3579.724049 | D4: -311753.0694 | E4: 4 | G4: 12191.221 | H4: 326056.5335
A5: 5 | C5: 7663.078984 | D5: -306958.2151 | E5: 5 | G5: 16144.09871 | H5: 329378.049
A6: 6 | C6: 11746.43392 | D6: -302191.5919 | E6: 6 | G6: 20096.97642 | H6: 332726.3734
A7: 7 | C7: 15829.78885 | D7: -297453.3847 | E7: 7 | G7: 24049.85412 | H7: 336101.6625
A8: 8 | C8: 19913.14379 | D8: -292743.7719 | E8: 8 | G8: 28002.73183 | H8: 339504.0664
A9: 9 | C9: 23996.49872 | D9: -288062.9257 | E9: 9 | G9: 31955.60954 | H9: 342933.729
A10: 10 | C10: 28079.85366 | D10: -283411.0116 | E10: 10 | G10: 35908.48725 | H10: 346390.7881
A11: 11 | C11: 32163.20859 | D11: -278788.1884 | E11: 11 | G11: 39861.36496 | H11: 349875.3752
A12: 12 | C12: 36246.56353 | D12: -274194.6077 | E12: 12 | G12: 43814.24266 | H12: 353387.6152
A13: 13 | C13: 40329.91846 | D13: -269630.4139 | E13: 13 | G13: 47767.12037 | H13: 356927.6264
A14: 14 | C14: 44413.2734 | D14: -265095.744 | E14: 14 | G14: 51719.99808 | H14: 360495.5201
A15: 15 | C15: 48496.62833 | D15: -260590.7272 | E15: 15 | G15: 55672.87579 | H15: 364091.4007
A16: 16 | C16: 52579.98327 | D16: -256115.4852 | E16: 16 | G16: 59625.7535 | H16: 367715.3657
A17: 17 | C17: 56663.3382 | D17: -251670.1314 | E17: 17 | G17: 63578.63121 | H17: 371367.5048
A18: 18 | C18: 60746.69314 | D18: -247254.7712 | E18: 18 | G18: 67531.50891 | H18: 375047.901
A19: 19 | C19: 64830.04807 | D19: -242869.5018 | E19: 19 | G19: 71484.38662 | H19: 378756.6292
A20: 20 | C20: 68913.403 | D20: -238514.4117 | E20: 20 | G20: 75437.26433 | H20: 382493.7572
A21: 21 | C21: 72996.75794 | D21: -234189.5811 | E21: 21 | G21: 79390.14204 | H21: 386259.3447
A22: 22 | C22: 77080.11287 | D22: -229895.0813 | E22: 22 | G22: 83343.01975 | H22: 390053.444
A23: 23 | C23: 81163.46781 | D23: -225630.9751 | E23: 23 | G23: 87295.89745 | H23: 393876.0993
A24: 24 | C24: 85246.82274 | D24: -221397.316 | E24: 24 | G24: 91248.77516 | H24: 397727.347
A25: 25 | C25: 89330.17768 | D25: -217194.149 | E25: 25 | G25: 95201.65287 | H25: 401607.2156
A26: 26 | C26: 93413.53261 | D26: -213021.5098 | E26: 26 | G26: 99154.53058 | H26: 405515.7256
A27: 27 | C27: 97496.88755 | D27: -208879.4251 | E27: 27 | G27: 103107.4083 | H27: 409452.8893
A28: 28 | C28: 101580.2425 | D28: -204767.9124 | E28: 28 | G28: 107060.286 | H28: 413418.7113
A29: 29 | C29: 105663.5974 | D29: -200686.9802 | E29: 29 | G29: 111013.1637 | H29: 417413.1878
A30: 30 | C30: 109746.9524 | D30: -196636.6278 | E30: 30 | G30: 114966.0414 | H30: 421436.3072
A31: 31 | C31: 113830.3073 | D31: -192616.8453 | E31: 31 | G31: 118918.9191 | H31: 425488.0499
A32: 32 | C32: 117913.6622 | D32: -188627.6136 | E32: 32 | G32: 122871.7968 | H32: 429568.388
A33: 33 | C33: =-8670.34075514696+(A33-1)*4083.35493472647 -> 121997.0172 | D33: =0+1*C33-298962.5446483*(1.05+(C33-103298.428082031)^2/159070517175.939)^0.5 -> -184668.9046 | E33: 33 | G33: =332.587874014628+(E33-1)*3952.87770821688 -> 126824.6745 | H33: =0+1*G33+298962.5446483*(1.05+(G33-103298.428082031)^2/159070517175.939)^0.5 -> 433677.2861
A34: 34 | C34: 126080.3721 | D34: -180740.6812 | E34: 34 | G34: 130777.5522 | H34: 437814.7005
A35: 35 | C35: 130163.727 | D35: -176842.897 | E35: 35 | G35: 134730.43 | H35: 441980.5799
A36: 36 | C36: 134247.082 | D36: -172975.4971 | E36: 36 | G36: 138683.3077 | H36: 446174.8651
A37: 37 | C37: 138330.4369 | D37: -169138.4172 | E37: 37 | G37: 142636.1854 | H37: 450397.4893
A38: 38 | C38: 142413.7918 | D38: -165331.5848 | E38: 38 | G38: 146589.0631 | H38: 454648.378
A39: 39 | C39: 146497.1468 | D39: -161554.9182 | E39: 39 | G39: 150541.9408 | H39: 458927.4494
A40: 40 | C40: 150580.5017 | D40: -157808.3274 | E40: 40 | G40: 154494.8185 | H40: 463234.6139
A41: 41 | C41: 154663.8566 | D41: -154091.7142 | E41: 41 | G41: 158447.6962 | H41: 467569.7752
A42: 42 | C42: 158747.2116 | D42: -150404.9718 | E42: 42 | G42: 162400.5739 | H42: 471932.8294
A43: 43 | C43: 162830.5665 | D43: -146747.9853 | E43: 43 | G43: 166353.4516 | H43: 476323.6658
A44: 44 | C44: 166913.9214 | D44: -143120.6321 | E44: 44 | G44: 170306.3293 | H44: 480742.1669
A45: 45 | C45: 170997.2764 | D45: -139522.7816 | E45: 45 | G45: 174259.207 | H45: 485188.2083
A46: 46 | C46: 175080.6313 | D46: -135954.2955 | E46: 46 | G46: 178212.0847 | H46: 489661.6592
A47: 47 | C47: 179163.9862 | D47: -132415.0284 | E47: 47 | G47: 182164.9625 | H47: 494162.3824
A48: 48 | C48: 183247.3412 | D48: -128904.8275 | E48: 48 | G48: 186117.8402 | H48: 498690.2345
A49: 49 | C49: 187330.6961 | D49: -125423.5329 | E49: 49 | G49: 190070.7179 | H49: 503245.0662
A50: 50 | C50: 191414.051 | D50: -121970.9781 | E50: 50 | G50: 194023.5956 | H50: 507826.722
A51: 51 | C51: 195497.406 | D51: -118546.9899 | E51: 51 | G51: 197976.4733 | H51: 512435.0412
A52: 52 | C52: 199580.7609 | D52: -115151.3887 | E52: 52 | G52: 201929.351 | H52: 517069.8574
A53: 53 | C53: 203664.1159 | D53: -111783.9889 | E53: 53 | G53: 205882.2287 | H53: 521730.9988
A54: 54 | C54: 207747.4708 | D54: -108444.5988 | E54: 54 | G54: 209835.1064 | H54: 526418.289
A55: 55 | C55: 211830.8257 | D55: -105133.0214 | E55: 55 | G55: 213787.9841 | H55: 531131.5462
A56: 56 | C56: 215914.1807 | D56: -101849.0538 | E56: 56 | G56: 217740.8618 | H56: 535870.5843
A57: 57 | C57: 219997.5356 | D57: -98592.48833 | E57: 57 | G57: 221693.7395 | H57: 540635.2127
A58: 58 | C58: 224080.8905 | D58: -95363.11216 | E58: 58 | G58: 225646.6172 | H58: 545425.2365
A59: 59 | C59: 228164.2455 | D59: -92160.70785 | E59: 59 | G59: 229599.495 | H59: 550240.4567
A60: 60 | C60: 232247.6004 | D60: -88985.05349 | E60: 60 | G60: 233552.3727 | H60: 555080.6707
A61: 61 | C61: 236330.9553 | D61: -85835.92297 | E61: 61 | G61: 237505.2504 | H61: 559945.6721
A62: 62 | C62: 240414.3103 | D62: -82713.08625 | E62: 62 | G62: 241458.1281 | H62: 564835.2511
A63: 63 | C63: 244497.6652 | D63: -79616.30955 | E63: 63 | G63: 245411.0058 | H63: 569749.1949
A64: 64 | C64: 248581.0201 | D64: -76545.35565 | E64: 64 | G64: 249363.8835 | H64: 574687.2874
A65: 65 | C65: =-8670.34075514696+(A65-1)*4083.35493472647 -> 252664.3751 | D65: =0+1*C65-298962.5446483*(1.05+(C65-103298.428082031)^2/159070517175.939)^0.5 -> -73499.98408 | E65: 65 | G65: =332.587874014628+(E65-1)*3952.87770821688 -> 253316.7612 | H65: =0+1*G65+298962.5446483*(1.05+(G65-103298.428082031)^2/159070517175.939)^0.5 -> 579649.3099
A66: 66 | C66: 256747.73 | D66: -70479.9514 | E66: 66 | G66: 257269.6389 | H66: 584635.0413
A67: 67 | C67: 260831.0849 | D67: -67485.01141 | E67: 67 | G67: 261222.5166 | H67: 589644.2576
A68: 68 | C68: 264914.4399 | D68: -64514.91539 | E68: 68 | G68: 265175.3943 | H68: 594676.7332
A69: 69 | C69: 268997.7948 | D69: -61569.41236 | E69: 69 | G69: 269128.272 | H69: 599732.2401
A70: 70 | C70: 273081.1497 | D70: -58648.24923 | E70: 70 | G70: 273081.1497 | H70: 604810.5487

Sheet Kruskal-Wallis Stations
B1: XLSTAT 2021.3.1.1183 - Comparison of k samples (Kruskal-Wallis, Friedman, ...) - Start time: 09/16/2021 at 01:52:54 / End time: 09/16/2021 at 01:53:24 / Microsoft Excel 16.014326
B2: Data: Workbook = Microplastics Samples Sorted (version 1).xlsb / Sheet = MPsediment ratio / Range = 'MPsediment ratio'!$A$3:$A$23,'MPsediment ratio'!$J$3:$J$23 / 20 rows and 2 columns
B3: Sample identifiers: Workbook = Microplastics Samples Sorted (version 1).xlsb / Sheet = MPsediment ratio / Range = 'MPsediment ratio'!$A$3:$A$23 / 20 rows and 1 column
B4: Significance level (%): 5
B5: p-value: Exact p-value
B10: Summary statistics:
B12: Variable | C12: Observations | D12: Obs. with missing data | E12: Obs. without missing data | F12: Minimum | G12: Maximum | H12: Mean | I12: Std. deviation
B13: Station | C13: 20 | D13: 0 | E13: 20 | F13: 1.000 | G13: 5.000 | H13: 3.000 | I13: 1.451
B14: mg MP/kg dry sediment | C14: 20 | D14: 0 | E14: 20 | F14: 0.000 | G14: 422639.884 | H14: 103298.428 | I14: 154608.888
B17: Summary statistics (Subsamples):
B19: Variable | C19: Categories | D19: Counts | E19: Frequencies | F19: %
B20: Station | C20: 1 | D20: 4 | E20: 4 | F20: 20.000
C21: 2 | D21: 4 | E21: 4 | F21: 20.000
C22: 3 | D22: 4 | E22: 4 | F22: 20.000
C23: 4 | D23: 4 | E23: 4 | F23: 20.000
C24: 5 | D24: 4 | E24: 4 | F24: 20.000
B27: Summary statistics (Data / Subsamples):
B29: Variable | C29: Observations | D29: Obs. with missing data | E29: Obs. without missing data | F29: Minimum | G29: Maximum | H29: Mean | I29: Std. deviation
B30: Station | Station-1 | C30: 4 | D30: 0 | E30: 4 | F30: 1.000 | G30: 1.000 | H30: 1.000 | I30: 0.000
B31: Station | Station-2 | C31: 4 | D31: 0 | E31: 4 | F31: 2.000 | G31: 2.000 | H31: 2.000 | I31: 0.000
B32: Station | Station-3 | C32: 4 | D32: 0 | E32: 4 | F32: 3.000 | G32: 3.000 | H32: 3.000 | I32: 0.000
B33: Station | Station-4 | C33: 4 | D33: 0 | E33: 4 | F33: 4.000 | G33: 4.000 | H33: 4.000 | I33: 0.000
B34: Station | Station-5 | C34: 4 | D34: 0 | E34: 4 | F34: 5.000 | G34: 5.000 | H34: 5.000 | I34: 0.000
B35: mg MP/kg dry sediment | Station-1 | C35: 4 | D35: 0 | E35: 4 | F35: 21848.674 | G35: 422639.884 | H35: 227567.625 | I35: 212069.005
B36: mg MP/kg dry sediment | Station-2 | C36: 4 | D36: 0 | E36: 4 | F36: 16.719 | G36: 876.670 | H36: 415.735 | I36: 353.041
B37: mg MP/kg dry sediment | Station-3 | C37: 4 | D37: 0 | E37: 4 | F37: 6210.917 | G37: 385684.142 | H37: 140393.525 | I37: 172858.965
B38: mg MP/kg dry sediment | Station-4 | C38: 4 | D38: 0 | E38: 4 | F38: 44313.629 | G38: 374707.467 | H38: 147043.423 | I38: 153338.616
B39: mg MP/kg dry sediment | Station-5 | C39: 4 | D39: 0 | E39: 4 | F39: 0.000 | G39: 2428.012 | H39: 1071.833 | I39: 1253.646
B42: Results for variable Station:
B44: Kruskal-Wallis test / Two-tailed test (Station):
B46: K | C46: 19
B47: p-value (one-tailed) | C47: 3.927469651e-10
B48: alpha | C48: 0.050
B49: The p-value is computed using an exact method. Time elapsed: 0s.
B51: Test interpretation:
B52: H0: The samples come from the same population.
B53: Ha: The samples do not come from the same population.
B54: As the computed p-value is lower than the significance level alpha=0.05, one should reject the null hypothesis H0, and accept the alternative hypothesis Ha.
B58: Ties have been detected in the data and the appropriate corrections have been applied.
B61: Multiple pairwise comparisons using Dunn's procedure / Two-tailed test:
B63: Sample | C63: Frequency | D63: Sum of ranks | E63: Mean of ranks | F63: Groups
B64: 5 | C64: 4 | D64: 74.000 | E64: 18.500 | F64: A
B65: 4 | C65: 4 | D65: 58.000 | E65: 14.500 | F65: A | G65: B
B66: 3 | C66: 4 | D66: 42.000 | E66: 10.500 | F66: A | G66: B | H66: C
B67: 2 | C67: 4 | D67: 26.000 | E67: 6.500 | G67: B | H67: C
B68: 1 | C68: 4 | D68: 10.000 | E68: 2.500 | H68: C
B71: Pairwise comparisons (Station):
B73: Differences:
C75: 1 | D75: 2 | E75: 3 | F75: 4 | G75: 5
B76: 1 | C76: 0 | D76: -4.000 | E76: -8.000 | F76: -12.000 | G76: -16.000
B77: 2 | C77: 4.000 | D77: 0 | E77: -4.000 | F77: -8.000 | G77: -12.000
B78: 3 | C78: 8.000 | D78: 4.000 | E78: 0 | F78: -4.000 | G78: -8.000
B79: 4 | C79: 12.000 | D79: 8.000 | E79: 4.000 | F79: 0 | G79: -4.000
B80: 5 | C80: 16.000 | D80: 12.000 | E80: 8.000 | F80: 4.000 | G80: 0
B83: p-values:
C85: 1 | D85: 2 | E85: 3 | F85: 4 | G85: 5
B86: 1 | C86: 1 | D86: 0.3297192973 | E86: 0.05125258286 | F86: 0.003455222268 | G86: 9.670342063e-05
B87: 2 | C87: 0.3297192973 | D87: 1 | E87: 0.3297192973 | F87: 0.05125258286 | G87: 0.003455222268
B88: 3 | C88: 0.05125258286 | D88: 0.3297192973 | E88: 1 | F88: 0.3297192973 | G88: 0.05125258286
B89: 4 | C89: 0.003455222268 | D89: 0.05125258286 | E89: 0.3297192973 | F89: 1 | G89: 0.3297192973
B90: 5 | C90: 9.670342063e-05 | D90: 0.003455222268 | E90: 0.05125258286 | F90: 0.3297192973 | G90: 1
B91: Bonferroni corrected significance level: 0.005
B94: Significant differences:
C96: 1 | D96: 2 | E96: 3 | F96: 4 | G96: 5
B97: 1 | C97: No | D97: No | E97: No | F97: Yes | G97: Yes
B98: 2 | C98: No | D98: No | E98: No | F98: No | G98: Yes
B99: 3 | C99: No | D99: No | E99: No | F99: No | G99: No
B100: 4 | C100: Yes | D100: No | E100: No | F100: No | G100: No
B101: 5 | C101: Yes | D101: Yes | E101: No | F101: No | G101: No
B144: Results for variable mg MP/kg dry sediment:
B146: Kruskal-Wallis test / Two-tailed test (mg MP/kg dry sediment):
B148: K | C148: 13.943
B149: p-value (one-tailed) | C149: 0.0005564446856
B150: alpha | C150: 0.050
B151: The p-value is computed using an exact method. Time elapsed: 14s.
B153: Test interpretation:
B154: H0: The samples come from the same population.
B155: Ha: The samples do not come from the same population.
B156: As the computed p-value is lower than the significance level alpha=0.05, one should reject the null hypothesis H0, and accept the alternative hypothesis Ha.
B160: Multiple pairwise comparisons using Dunn's procedure / Two-tailed test:
B162: Sample | C162: Frequency | D162: Sum of ranks | E162: Mean of ranks | F162: Groups
B163: 1 | C163: 4 | D163: 62.000 | E163: 15.500 | F163: A
B164: 4 | C164: 4 | D164: 58.000 | E164: 14.500 | F164: A
B165: 3 | C165: 4 | D165: 54.000 | E165: 13.500 | F165: A
B166: 2 | C166: 4 | D166: 18.000 | E166: 4.500 | F166: A
B167: 5 | C167: 4 | D167: 18.000 | E167: 4.500 | F167: A
B170: Pairwise comparisons (mg MP/kg dry sediment):
B172: Differences:
C174: 1 | D174: 2 | E174: 3 | F174: 4 | G174: 5
B175: 1 | C175: 0 | D175: 11.000 | E175: 2.000 | F175: 1.000 | G175: 11.000
B176: 2 | C176: -11.000 | D176: 0 | E176: -9.000 | F176: -10.000 | G176: 0.000
B177: 3 | C177: -2.000 | D177: 9.000 | E177: 0 | F177: -1.000 | G177: 9.000
B178: 4 | C178: -1.000 | D178: 10.000 | E178: 1.000 | F178: 0 | G178: 10.000
B179: 5 | C179: -11.000 | D179: 0.000 | E179: -9.000 | F179: -10.000 | G179: 0
B182: p-values:
C184: 1 | D184: 2 | E184: 3 | F184: 4 | G184: 5
B185: 1 | C185: 1 | D185: 0.008550979237 | E185: 0.6325851217 | F185: 0.8110701293 | G185: 0.008550979237
B186: 2 | C186: 0.008550979237 | D186: 1 | E186: 0.03144373455 | F186: 0.01682740948 | G186: 1
B187: 3 | C187: 0.6325851217 | D187: 0.03144373455 | E187: 1 | F187: 0.8110701293 | G187: 0.03144373455
B188: 4 | C188: 0.8110701293 | D188: 0.01682740948 | E188: 0.8110701293 | F188: 1 | G188: 0.01682740948
B189: 5 | C189: 0.008550979237 | D189: 1 | E189: 0.03144373455 | F189: 0.01682740948 | G189: 1
B190: Bonferroni corrected significance level: 0.005
B193: Significant differences:
C195: 1 | D195: 2 | E195: 3 | F195: 4 | G195: 5
B196: 1 | C196: No | D196: No | E196: No | F196: No | G196: No
B197: 2 | C197: No | D197: No | E197: No | F197: No | G197: No
B198: 3 | C198: No | D198: No | E198: No | F198: No | G198: No
B199: 4 | C199: No | D199: No | E199: No | F199: No | G199: No
B200: 5 | C200: No | D200: No | E200: No | F200: No | G200: No
B243: Summary (p-values):
B245: Variable | C245: Kruskal-Wallis
B246: Station | C246: 3.927469651e-10
B247: mg MP/kg dry sediment | C247: 0.0005564446856

Sheet Kruskal-SurfacewrtSubsurface
B1: XLSTAT 2021.3.1.1183 - Comparison of k samples (Kruskal-Wallis, Friedman, ...) - Start time: 09/15/2021 at 08:19:04 / End time: 09/15/2021 at 08:19:07 / Microsoft Excel 16.014326
B2: Data: Workbook = Microplastics Samples Sorted (version 1).xlsb / Sheet = MPsediment ratio / Range = 'MPsediment ratio'!$D$54:$D$64,'MPsediment ratio'!$F$54:$F$64 / 10 rows and 2 columns
B3: Sample identifiers: Workbook = Microplastics Samples Sorted (version 1).xlsb / Sheet = MPsediment ratio / Range = 'MPsediment ratio'!$C$54:$C$64 / 10 rows and 1 column
B4: Significance level (%): 5
B5: p-value: Exact p-value
B10: Summary statistics:
B12: Variable | C12: Observations | D12: Obs. with missing data | E12: Obs. without missing data | F12: Minimum | G12: Maximum | H12: Mean | I12: Std. deviation
B13: Surface | C13: 10 | D13: 0 | E13: 10 | F13: 0.000 | G13: 0.423 | H13: 0.179 | I13: 0.191
B14: Subsurface | C14: 10 | D14: 0 | E14: 10 | F14: 0.000 | G14: 0.098 | H14: 0.027 | I14: 0.034
B17: Summary statistics (Subsamples):
B19: Variable | C19: Categories | D19: Counts | E19: Frequencies | F19: %
B20: Sample | C20: A | D20: 5 | E20: 5 | F20: 50.000
C21: B | D21: 5 | E21: 5 | F21: 50.000
B24: Summary statistics (Data / Subsamples):
B26: Variable | C26: Observations | D26: Obs. with missing data | E26: Obs. without missing data | F26: Minimum | G26: Maximum | H26: Mean | I26: Std. deviation
B27: Surface | Sample-A | C27: 5 | D27: 0 | E27: 5 | F27: 0.136 | G27: 0.423 | H27: 0.343 | I27: 0.117
B28: Surface | Sample-B | C28: 5 | D28: 0 | E28: 5 | F28: 0.000 | G28: 0.071 | H28: 0.015 | I28: 0.032
B29: Subsurface | Sample-A | C29: 5 | D29: 0 | E29: 5 | F29: 0.006 | G29: 0.098 | H29: 0.045 | I29: 0.037
B30: Subsurface | Sample-B | C30: 5 | D30: 0 | E30: 5 | F30: 0.000 | G30: 0.044 | H30: 0.009 | I30: 0.020
B33: Results for variable Surface:
B35: Kruskal-Wallis test / Two-tailed test (Surface):
B37: K | C37: 6.818
B38: p-value (one-tailed) | C38: 0.007936507937
B39: alpha | C39: 0.050
B40: The p-value is computed using an exact method. Time elapsed: 0s.
B42: Test interpretation:
B43: H0: The samples come from the same population.
B44: Ha: The samples do not come from the same population.
B45: As the computed p-value is lower than the significance level alpha=0.05, one should reject the null hypothesis H0, and accept the alternative hypothesis Ha.
B49: Multiple pairwise comparisons using Dunn's procedure / Two-tailed test:
B51: Sample | C51: Frequency | D51: Sum of ranks | E51: Mean of ranks | F51: Groups
B52: A | C52: 5 | D52: 40.000 | E52: 8.000 | F52: A
B53: B | C53: 5 | D53: 15.000 | E53: 3.000 | G53: B
B96: Results for variable Subsurface:
B98: Kruskal-Wallis test / Two-tailed test (Subsurface):
B100: K | C100: 3.938
B101: p-value (one-tailed) | C101: 0.05555555556
B102: alpha | C102: 0.050
B103: The p-value is computed using an exact method. Time elapsed: 0s.
B105: Test interpretation:
B106: H0: The samples come from the same population.
B107: Ha: The samples do not come from the same population.
B108: As the computed p-value is greater than the significance level alpha=0.05, one cannot reject the null hypothesis H0.
B112: Multiple pairwise comparisons using Dunn's procedure / Two-tailed test:
B114: Sample | C114: Frequency | D114: Sum of ranks | E114: Mean of ranks | F114: Groups
B115: A | C115: 5 | D115: 37.000 | E115: 7.400 | F115: A
B116: B | C116: 5 | D116: 18.000 | E116: 3.600 | G116: B
B159: Summary (p-values):
B161: Variable | C161: Kruskal-Wallis
B162: Surface | C162: 0.007936507937
B163: Subsurface | C163: 0.05555555556

Sheet MP by morphology
B2: SAMPLE ID | C2: Fragment | D2: Foam | E2: Film | F2: Fibre/Filament | G2: Pellet | H2: Total | I2: Mass of dry sediment (g) | J2: Particles/kg dry sed
B3: MS01A | C3: =(SAMPLES!C8+SAMPLES!C31+SAMPLES!C55) -> 956 | D3: =(SAMPLES!C10+SAMPLES!C33+SAMPLES!C57) -> 53 | E3: =(SAMPLES!C12+SAMPLES!C35+SAMPLES!C59) -> 23 | F3: =(SAMPLES!C9+SAMPLES!C32+SAMPLES!C56) -> 111 | G3: =(SAMPLES!C34+SAMPLES!C58) -> 509 | H3: =SUM(C3:G3) -> 1652 | I3: 68.0804 | J3: =(H3/(I3/1000)) -> 24265
B4: MS01B | C4: =(SAMPLES!D8+SAMPLES!D31+SAMPLES!D55) -> 1561 | D4: =SAMPLES!D10+SAMPLES!D33+SAMPLES!D57 -> 59 | E4: =SAMPLES!D12+SAMPLES!D35+SAMPLES!D59 -> 5 | F4: =SAMPLES!D9+SAMPLES!D32+SAMPLES!D56 -> 122 | G4: =SAMPLES!D11+SAMPLES!D34+SAMPLES!D58 -> 446 | H4: 2193 | I4: 34.1321 | J4: 64250
B5: MD01A | C5: =SAMPLES!E8+SAMPLES!E31+SAMPLES!E55 -> 64 | D5: =SAMPLES!E10+SAMPLES!E33+SAMPLES!E57 -> 2 | E5: =SAMPLES!E12+SAMPLES!E35+SAMPLES!E59 -> 0 | F5: =SAMPLES!E9+SAMPLES!E32+SAMPLES!E56 -> 2 | G5: =SAMPLES!E11+SAMPLES!E34+SAMPLES!E58 -> 27 | H5: 95 | I5: 34.0844 | J5: 2787
B6: MD01B | C6: =SAMPLES!F8+SAMPLES!F31+SAMPLES!F55 -> 65 | D6: =SAMPLES!F10+SAMPLES!F33+SAMPLES!F57 -> 7 | E6: =SAMPLES!F12+SAMPLES!F35+SAMPLES!F59 -> 7 | F6: =SAMPLES!F9+SAMPLES!F32+SAMPLES!F56 -> 6 | G6: =SAMPLES!F11+SAMPLES!F34+SAMPLES!F58 -> 63 | H6: 148 | I6: 36.1399 | J6: 4095
B7: MS02A | C7: =SAMPLES!G8+SAMPLES!G31+SAMPLES!G55 -> 11 | D7: =SAMPLES!G10+SAMPLES!G33+SAMPLES!G57 -> 0 | E7: =SAMPLES!G12+SAMPLES!G35+SAMPLES!G59 -> 0 | F7: =SAMPLES!G9+SAMPLES!G32+SAMPLES!G56 -> 0 | G7: =SAMPLES!G11+SAMPLES!G58 -> 0 | H7: 11 | I7: 59.7716 | J7: 184
B8: MS02B | C8: =SAMPLES!H8+SAMPLES!H31+SAMPLES!H55 -> 5 | D8: =SAMPLES!H10+SAMPLES!H57 -> 0 | E8: =SAMPLES!H12+SAMPLES!H35+SAMPLES!H59 -> 2 | F8: =SAMPLES!H9+SAMPLES!H32+SAMPLES!H56 -> 1 | G8: =SAMPLES!H11+SAMPLES!H34+SAMPLES!H58 -> 0 | H8: 8 | I8: 59.9328 | J8: 133
B9: MD02A | C9: =SAMPLES!I8+SAMPLES!I31+SAMPLES!I55 -> 2 | D9: =SAMPLES!I10+SAMPLES!I57 -> 0 | E9: =SAMPLES!I12+SAMPLES!I35+SAMPLES!I59 -> 0 | F9: =SAMPLES!I9+SAMPLES!I56+SAMPLES!I32 -> 0 | G9: =SAMPLES!I11+SAMPLES!I34+SAMPLES!I58 -> 0 | H9: 2 | I9: 59.8134 | J9: 33
B10: MD02B | C10: =SAMPLES!J8+SAMPLES!J31+SAMPLES!J55 -> 0 | D10: =SAMPLES!J8+SAMPLES!J31+SAMPLES!J55 -> 0 | E10: =SAMPLES!J12+SAMPLES!J33+SAMPLES!J57 -> 0 | F10: =SAMPLES!J9+SAMPLES!J32+SAMPLES!J56 -> 1 | G10: =SAMPLES!J11+SAMPLES!J34+SAMPLES!J58 -> 0 | H10: 1 | I10: 59.8791 | J10: 17
B11: MS03A | C11: =SAMPLES!K8+SAMPLES!K31+SAMPLES!K55 -> 500 | D11: =SAMPLES!K10+SAMPLES!K33+SAMPLES!K57 -> 178 | E11: =SAMPLES!K12+SAMPLES!K35+SAMPLES!K59 -> 5 | F11: =SAMPLES!K9+SAMPLES!K32+SAMPLES!K56 -> 74 | G11: =SAMPLES!K11+SAMPLES!K34+SAMPLES!K58 -> 173 | H11: 930 | I11: 31.5118 | J11: 29513
B12: MS03B | C12: =SAMPLES!L8+SAMPLES!L31+SAMPLES!L55 -> 74 | D12: =SAMPLES!L10+SAMPLES!L33+SAMPLES!L57 -> 67 | E12: =SAMPLES!L12+SAMPLES!L35+SAMPLES!L59 -> 0 | F12: =SAMPLES!L9+SAMPLES!L32+SAMPLES!L56 -> 5 | G12: =SAMPLES!L11+SAMPLES!L34+SAMPLES!L58 -> 134 | H12: 280 | I12: 31.6185 | J12: 8856
B13: MD03A | C13: =SAMPLES!M8+SAMPLES!M31+SAMPLES!M55 -> 38 | D13: =SAMPLES!M10+SAMPLES!M33+SAMPLES!M57 -> 23 | E13: =SAMPLES!M12+SAMPLES!M35+SAMPLES!M59 -> 0 | F13: =SAMPLES!M12+SAMPLES!M35+SAMPLES!M59 -> 0 | G13: =SAMPLES!M11+SAMPLES!M34+SAMPLES!M58 -> 38 | H13: 99 | I13: 31.4239 | J13: 3150
B14: MD03B | C14: =SAMPLES!N8+SAMPLES!N31+SAMPLES!N55 -> 18 | D14: =SAMPLES!N10+SAMPLES!N33+SAMPLES!N57 -> 4 | E14: =SAMPLES!N12+SAMPLES!N35+SAMPLES!N59 -> 0 | F14: =SAMPLES!N9+SAMPLES!N32+SAMPLES!N56 -> 0 | G14: =SAMPLES!N11+SAMPLES!N34+SAMPLES!N58 -> 5 | H14: 27 | I14: 31.8633 | J14: 847
B15: MS04A | C15: =SAMPLES!O8+SAMPLES!O31+SAMPLES!O55 -> 1224 | D15: =SAMPLES!O10+SAMPLES!O33+SAMPLES!O57 -> 288 | E15: =SAMPLES!O12+SAMPLES!O59 -> 6 | F15: =SAMPLES!O9+SAMPLES!O32+SAMPLES!O56 -> 29 | G15: =SAMPLES!O11+SAMPLES!O34+SAMPLES!O58 -> 248 | H15: 1795 | I15: 31.4904 | J15: 57001
B16: MS04B | C16: =SAMPLES!P8+SAMPLES!P31+SAMPLES!P55 -> 18 | D16: =SAMPLES!P10+SAMPLES!P33+SAMPLES!P57 -> 4 | E16: =SAMPLES!P12+SAMPLES!P35+SAMPLES!P59 -> 2 | F16: =SAMPLES!P9+SAMPLES!P32+SAMPLES!P56 -> 11 | G16: =SAMPLES!P11+SAMPLES!P34+SAMPLES!P58 -> 0 | H16: 35 | I16: 31.6346 | J16: 1106
B17: MD04A | C17: =SAMPLES!Q8+SAMPLES!Q31+SAMPLES!Q55 -> 212 | D17: =SAMPLES!Q10+SAMPLES!Q33+SAMPLES!Q57 -> 47 | E17: =SAMPLES!Q12+SAMPLES!Q35+SAMPLES!Q59 -> 7 | F17: =SAMPLES!Q9+SAMPLES!Q32+SAMPLES!Q56 -> 2 | G17: =SAMPLES!Q11+SAMPLES!Q34+SAMPLES!Q58 -> 101 | H17: 369 | I17: 31.6471 | J17: 11660
B18: MD04B | C18: =SAMPLES!R8+SAMPLES!R31+SAMPLES!R55 -> 17 | D18: =SAMPLES!R10+SAMPLES!R33+SAMPLES!R57 -> 5 | E18: =SAMPLES!R12+SAMPLES!R35+SAMPLES!R59 -> 0 | F18: =SAMPLES!R9+SAMPLES!R32+SAMPLES!R56 -> 0 | G18: =SAMPLES!R11+SAMPLES!R34+SAMPLES!R58 -> 24 | H18: 46 | I18: 31.5092 | J18: 1460
B19: MS05A | C19: =SAMPLES!S8+SAMPLES!S31+SAMPLES!S55 -> 6 | D19: =SAMPLES!S33+SAMPLES!S57 -> 0 | E19: =SAMPLES!S12+SAMPLES!S35+SAMPLES!S59 -> 1 | F19: =SAMPLES!S9+SAMPLES!S32+SAMPLES!S56 -> 0 | G19: =SAMPLES!S9+SAMPLES!S32+SAMPLES!S56 -> 0 | H19: 7 | I19: 26.4621 | J19: 265
B20: MS05B | C20: =SAMPLES!T8+SAMPLES!T31+SAMPLES!T55 -> 0 | D20: =SAMPLES!T10+SAMPLES!T33+SAMPLES!T57 -> 0 | E20: =SAMPLES!T12+SAMPLES!T35+SAMPLES!T59 -> 0 | F20: =SAMPLES!T9+SAMPLES!T32+SAMPLES!T56 -> 0 | G20: =SAMPLES!T11+SAMPLES!T34+SAMPLES!T58 -> 0 | H20: 0 | I20: 0 | J20: 0
B21: MD05A | C21: =SAMPLES!U8+SAMPLES!U31+SAMPLES!U55 -> 19 | D21: =SAMPLES!U10+SAMPLES!U33+SAMPLES!U57 -> 0 | E21: =SAMPLES!U12+SAMPLES!U35+SAMPLES!U59 -> 0 | F21: =SAMPLES!U9+SAMPLES!U32+SAMPLES!U56 -> 0 | G21: =SAMPLES!U11+SAMPLES!U34+SAMPLES!U58 -> 0 | H21: 19 | I21: 52.676848 | J21: 361
B22: MD05B | C22: =SAMPLES!V8+SAMPLES!V31+SAMPLES!V55 -> 3 | D22: =SAMPLES!V10+SAMPLES!V33+SAMPLES!V57 -> 0 | E22: =SAMPLES!V12+SAMPLES!V35+SAMPLES!V59 -> 0 | F22: =SAMPLES!V9+SAMPLES!V32+SAMPLES!V56 -> 0 | G22: =SAMPLES!V11+SAMPLES!V34+SAMPLES!V58 -> 0 | H22: 3 | I22: 52.645264 | J22: 57
C23: =SUM(C3:C22) -> 4793 | D23: =SUM(D3:D22) -> 737 | E23: =SUM(E3:E22) -> 58 | F23: =SUM(F3:F22) -> 364 | G23: =SUM(G3:G22) -> 1768
C27: Fragment | D27: Foam | E27: Film | F27: Fibre/Filament | G27: Pellet
C28: 4809 | D28: 737 | E28: 55 | F28: 366 | G28: 1768
